Workbook

Sheet Takstblad (hidden)
A1: Rate Catalog - incl. Salary and price increase
C2: Monthly Salary | L2: Cost Price
A3: Kategori | C3: 2023 | D3: =+C3+1 -> 2024 | E3: 2025 | F3: 2026 | G3: 2027 | H3: 2028 | I3: 2029 | J3: 2030 | L3: =+C3 -> 2023 | M3: =+D3 -> 2024 | N3: 2025 | O3: 2026 | P3: 2027 | Q3: 2028 | R3: 2029 | S3: 2030 | U3: Løn stigning | V3: 1.025
A4: VIP | C4: Column1 | U4: Prisstigning | V4: 1.028
A5: "Choose job function" | B5: =IF(A5=Lister!$A$21,"TAP/Other masters Degree",IF(A5=Lister!$A$22,"Laboratory technician",IF(A5=Lister!$A$23,"Laboratory technician",IF(A5=Lister!$A$24,"Technician",IF(A5=Lister!$A$25,"Technician",""))))) ->  | U5: Timer/md | V5: =1460/12 -> 121.6666667
A6: Post doc. | B6: =IF(A6=Lister!$A$21,"TAP/Other masters Degree",IF(A6=Lister!$A$22,"Laboratory technician",IF(A6=Lister!$A$23,"Laboratory technician",IF(A6=Lister!$A$24,"Technician",IF(A6=Lister!$A$25,"Technician",""))))) ->  | C6: 47400 | D6: =ROUNDUP(+C6*$V$3,-2) -> 48600 | E6: 49900 | F6: 51200 | G6: 52500 | H6: 53900 | I6: 55300 | J6: 56700 | L6: =+C6/$V$5 -> 389.5890411 | M6: =+D6/$V$5 -> 399.4520548 | N6: =+E6/$V$5 -> 410.1369863 | O6: =+F6/$V$5 -> 420.8219178 | P6: =+G6/$V$5 -> 431.5068493 | Q6: =+H6/$V$5 -> 443.0136986 | R6: =+I6/$V$5 -> 454.5205479 | S6: 466.0273973
A7: Research Assistent - avr. Rate | B7: =IF(A7=Lister!$A$21,"TAP/Other masters Degree",IF(A7=Lister!$A$22,"Laboratory technician",IF(A7=Lister!$A$23,"Laboratory technician",IF(A7=Lister!$A$24,"Technician",IF(A7=Lister!$A$25,"Technician",""))))) ->  | C7: 40200 | D7: =ROUNDUP(+C7*$V$3,-2) -> 41300 | E7: =ROUNDUP(+D7*$V$3,-2) -> 42400 | F7: =ROUNDUP(+E7*$V$3,-2) -> 43500 | G7: =ROUNDUP(+F7*$V$3,-2) -> 44600 | H7: =ROUNDUP(+G7*$V$3,-2) -> 45800 | I7: =ROUNDUP(+H7*$V$3,-2) -> 47000 | J7: =ROUNDUP(+I7*$V$3,-2) -> 48200 | L7: =+C7/$V$5 -> 330.4109589 | M7: =+D7/$V$5 -> 339.4520548 | N7: =+E7/$V$5 -> 348.4931507 | O7: =+F7/$V$5 -> 357.5342466 | P7: =+G7/$V$5 -> 366.5753425 | Q7: =+H7/$V$5 -> 376.4383562 | R7: =+I7/$V$5 -> 386.3013699 | S7: =+J7/$V$5 -> 396.1643836
A8: Technician - avr. Rate | C8: 40000 | D8: 41000 | E8: 42100 | F8: 43200 | G8: 44300 | H8: 45500 | I8: 46700 | J8: 47900 | L8: 328.7671233 | M8: 336.9863014 | N8: 346.0273973 | O8: 355.0684932 | P8: 364.109589 | Q8: 373.9726027 | R8: 383.8356164 | S8: 393.6986301
A9: Student help | B9: =IF(A9=Lister!$A$21,"TAP/Other masters Degree",IF(A9=Lister!$A$22,"Laboratory technician",IF(A9=Lister!$A$23,"Laboratory technician",IF(A9=Lister!$A$24,"Technician",IF(A9=Lister!$A$25,"Technician",""))))) ->  | C9: 20000 | D9: 20500 | E9: 21100 | F9: 21700 | G9: 22300 | H9: 22900 | I9: 23500 | J9: 24100 | L9: 164.3835616 | M9: 168.4931507 | N9: 173.4246575 | O9: 178.3561644 | P9: 183.2876712 | Q9: 188.2191781 | R9: 193.1506849 | S9: 198.0821918
B10: =IF(A10=Lister!$A$21,"TAP/Other masters Degree",IF(A10=Lister!$A$22,"Laboratory technician",IF(A10=Lister!$A$23,"Laboratory technician",IF(A10=Lister!$A$24,"Technician",IF(A10=Lister!$A$25,"Technician",""))))) ->  | D10: 0 | E10: 0 | F10: 0 | G10: 0 | H10: 0 | I10: 0 | J10: 0 | L10: =+C10/$V$5 -> 0 | M10: 0 | N10: 0 | O10: 0 | P10: 0 | Q10: 0 | R10: 0 | S10: 0
B11: =IF(A11=Lister!$A$21,"TAP/Other masters Degree",IF(A11=Lister!$A$22,"Laboratory technician",IF(A11=Lister!$A$23,"Laboratory technician",IF(A11=Lister!$A$24,"Technician",IF(A11=Lister!$A$25,"Technician",""))))) ->  | D11: =ROUNDUP(+C11*$V$3,-2) -> 0 | E11: 0 | F11: 0 | G11: 0 | H11: 0 | I11: 0 | J11: 0 | L11: 0 | M11: 0 | N11: 0 | O11: 0 | P11: 0 | Q11: 0 | R11: 0 | S11: 0
B12: =IF(A12=Lister!$A$21,"TAP/Other masters Degree",IF(A12=Lister!$A$22,"Laboratory technician",IF(A12=Lister!$A$23,"Laboratory technician",IF(A12=Lister!$A$24,"Technician",IF(A12=Lister!$A$25,"Technician",""))))) ->  | D12: 0 | E12: 0 | F12: 0 | G12: 0 | H12: 0 | I12: 0 | J12: 0 | L12: 0 | M12: 0 | N12: 0 | O12: 0 | P12: 0 | Q12: 0 | R12: 0 | S12: 0
B13: =IF(A13=Lister!$A$21,"TAP/Other masters Degree",IF(A13=Lister!$A$22,"Laboratory technician",IF(A13=Lister!$A$23,"Laboratory technician",IF(A13=Lister!$A$24,"Technician",IF(A13=Lister!$A$25,"Technician",""))))) ->  | D13: 0 | E13: 0 | F13: 0 | G13: 0 | H13: 0 | I13: 0 | J13: 0 | L13: 0 | M13: 0 | N13: 0 | O13: 0 | P13: 0 | Q13: 0 | R13: 0 | S13: 0
B14: =IF(A14=Lister!$A$21,"TAP/Other masters Degree",IF(A14=Lister!$A$22,"Laboratory technician",IF(A14=Lister!$A$23,"Laboratory technician",IF(A14=Lister!$A$24,"Technician",IF(A14=Lister!$A$25,"Technician",""))))) ->  | D14: 0 | E14: 0 | F14: 0 | G14: 0 | H14: 0 | I14: 0 | J14: 0 | L14: 0 | M14: 0 | N14: 0 | O14: 0 | P14: 0 | Q14: 0 | R14: 0 | S14: 0
B15: =IF(A15=Lister!$A$21,"TAP/Other masters Degree",IF(A15=Lister!$A$22,"Laboratory technician",IF(A15=Lister!$A$23,"Laboratory technician",IF(A15=Lister!$A$24,"Technician",IF(A15=Lister!$A$25,"Technician",""))))) ->  | D15: 0 | E15: 0 | F15: 0 | G15: 0 | H15: 0 | I15: 0 | J15: 0 | L15: 0 | M15: 0 | N15: 0 | O15: 0 | P15: 0 | Q15: 0 | R15: 0 | S15: 0
B16: =IF(A16=Lister!$A$21,"TAP/Other masters Degree",IF(A16=Lister!$A$22,"Laboratory technician",IF(A16=Lister!$A$23,"Laboratory technician",IF(A16=Lister!$A$24,"Technician",IF(A16=Lister!$A$25,"Technician",""))))) ->  | D16: 0 | E16: 0 | F16: 0 | G16: 0 | H16: 0 | I16: 0 | J16: 0 | L16: 0 | M16: 0 | N16: 0 | O16: 0 | P16: 0 | Q16: 0 | R16: 0 | S16: 0
B17: =IF(A17=Lister!$A$21,"TAP/Other masters Degree",IF(A17=Lister!$A$22,"Laboratory technician",IF(A17=Lister!$A$23,"Laboratory technician",IF(A17=Lister!$A$24,"Technician",IF(A17=Lister!$A$25,"Technician",""))))) ->  | D17: 0 | E17: 0 | F17: 0 | G17: 0 | H17: 0 | I17: 0 | J17: 0 | L17: 0 | M17: 0 | N17: 0 | O17: 0 | P17: 0 | Q17: 0 | R17: 0 | S17: 0
B18: =IF(A18=Lister!$A$21,"TAP/Other masters Degree",IF(A18=Lister!$A$22,"Laboratory technician",IF(A18=Lister!$A$23,"Laboratory technician",IF(A18=Lister!$A$24,"Technician",IF(A18=Lister!$A$25,"Technician",""))))) ->  | D18: 0 | E18: 0 | F18: 0 | G18: 0 | H18: 0 | I18: 0 | J18: 0 | L18: 0 | M18: 0 | N18: 0 | O18: 0 | P18: 0 | Q18: 0 | R18: 0 | S18: 0

Sheet Lister (hidden)
A1: Rullelister
A3: Institute | C3: Overheadsrate | E3: Overhead calculated on | G3: Yearly hours | H3: Description | J3: Supplement to research administration calculated by | L3: Currency | N3: Operations
A4: AGRO | C4: 0 | E4: Salary | G4: 1300 | J4: Salary | L4: DKK | N4: Misc. Operation/purchases/Conumables
A5: ANIVET | C5: 5 | E5: Salary and operations | G5: 1460 | H5: AU Standard (to be used unless other is stated) | J5: Operations | L5: EUR | N5: Travel
A6: FOOD | C6: 10 | E6: Salary and operations excl. External assistenca/consultants | G6: 1485 | H6: EU | J6: Salary and operations | N6: Procurements/depreciations
A7: DCA | C7: 15 | G7: 1642 | H7: GUDP | J7: None | N7: Scrap-value
A8: ICROFS | C8: 20 | G8: 15xx | H8: Interreg | N8: External assistance/consultants
A9: QGG | C9: 25 | G9: 1460 | H9: Grand Solutions | N9: Ph.D. enrollment (graduate school and courses)
A10: BCE | C10: 44 | G10: 1642 | H10: NIFA | N10: Analysis exsternal
A11: CAE | N11: Analysis internal
A12: ECE | N12: Field operations, Research stations
A13: MPE
A14: MAPP
A15: Other | N15: Livestock/stable operations
N16: Other
A19: Job functions | E19: Currency | G19: Rate
A20: PhD | E20: DKK | G20: 1
A21: TAP/Other Masters degree | E21: EUR | G21: 7.45 | J21: Funder | L21: Yearly hours | N21: OH rate
A22: Laboratory technician - high rate | E22: SEK | G22: 0.67 | J22: AUFF | L22: 1460 | N22: 44
A23: Laboratory technician - avr. Rate | E23: NOK | G23: 0.68 | L23: 1460 | N23: 44
A24: Technician - high rate | E24: USD | G24: 7.02 | L24: 1485 | N24: 25
A25: Technician - avr. Rate | E25: Optional currency | G25: 0 | L25: 1460 | N25: 44
L26: 1485 | N26: 25

Sheet Partner 1
A1: Budgeting CellFood AUFF Flagship
A3: Institute:
A4: Projecttitle:
A5: Projectleader:
A6: Funder: | C6: AUFF
A12: Choose Categori and insert count of months | C12: =+Takstblad!C3 -> 2023 | D12: =+C12+1 -> 2024 | E12: =+D12+1 -> 2025 | F12: =+E12+1 -> 2026 | G12: =+F12+1 -> 2027 | H12: Total | I12: Comment | J12: Salary | K12: =+C12 -> 2023 | L12: =+D12 -> 2024 | M12: =+E12 -> 2025 | N12: =+F12 -> 2026 | O12: =+G12 -> 2027 | P12: Total
A13: "Choose job function" | B13: =+VLOOKUP(A13,Takstblad!$A$5:$B$18,2,FALSE) ->  | H13: =SUM(C13:G13) -> 0 | K13: =+IFERROR(IF(K$12=Takstblad!C$3,VLOOKUP('Partner 1'!$A13,takstblad,3,FALSE)*'Partner 1'!C13,"fejl i år"),0) -> 0 | L13: =+IFERROR(IF(L$12=Takstblad!D$3,VLOOKUP('Partner 1'!$A13,takstblad,4,FALSE)*'Partner 1'!D13,"fejl i år"),0) -> 0 | M13: =+IFERROR(IF(M$12=Takstblad!E$3,VLOOKUP('Partner 1'!$A13,takstblad,5,FALSE)*'Partner 1'!E13,"fejl i år"),0) -> 0 | N13: =+IFERROR(IF(N$12=Takstblad!F$3,VLOOKUP('Partner 1'!$A13,takstblad,6,FALSE)*'Partner 1'!F13,"fejl i år"),0) -> 0 | O13: =+IFERROR(IF(O$12=Takstblad!G$3,VLOOKUP('Partner 1'!$A13,takstblad,7,FALSE)*'Partner 1'!G13,"fejl i år"),0) -> 0 | P13: =SUM(K13:O13) -> 0
A14: "Choose job function" | B14: =+VLOOKUP(A14,Takstblad!$A$5:$B$18,2,FALSE) ->  | H14: 0 | K14: =+IFERROR(IF(K$12=Takstblad!C$3,VLOOKUP('Partner 1'!$A14,takstblad,3,FALSE)*'Partner 1'!C14,"fejl i år"),0) -> 0 | L14: =+IFERROR(IF(L$12=Takstblad!D$3,VLOOKUP('Partner 1'!$A14,takstblad,4,FALSE)*'Partner 1'!D14,"fejl i år"),0) -> 0 | M14: =+IFERROR(IF(M$12=Takstblad!E$3,VLOOKUP('Partner 1'!$A14,takstblad,5,FALSE)*'Partner 1'!E14,"fejl i år"),0) -> 0 | N14: =+IFERROR(IF(N$12=Takstblad!F$3,VLOOKUP('Partner 1'!$A14,takstblad,6,FALSE)*'Partner 1'!F14,"fejl i år"),0) -> 0 | O14: =+IFERROR(IF(O$12=Takstblad!G$3,VLOOKUP('Partner 1'!$A14,takstblad,7,FALSE)*'Partner 1'!G14,"fejl i år"),0) -> 0 | P14: 0
A15: "Choose job function" | H15: 0 | K15: =+IFERROR(IF(K$12=Takstblad!C$3,VLOOKUP('Partner 1'!$A15,takstblad,3,FALSE)*'Partner 1'!C15,"fejl i år"),0) -> 0 | L15: =+IFERROR(IF(L$12=Takstblad!D$3,VLOOKUP('Partner 1'!$A15,takstblad,4,FALSE)*'Partner 1'!D15,"fejl i år"),0) -> 0 | M15: =+IFERROR(IF(M$12=Takstblad!E$3,VLOOKUP('Partner 1'!$A15,takstblad,5,FALSE)*'Partner 1'!E15,"fejl i år"),0) -> 0 | N15: =+IFERROR(IF(N$12=Takstblad!F$3,VLOOKUP('Partner 1'!$A15,takstblad,6,FALSE)*'Partner 1'!F15,"fejl i år"),0) -> 0 | O15: =+IFERROR(IF(O$12=Takstblad!G$3,VLOOKUP('Partner 1'!$A15,takstblad,7,FALSE)*'Partner 1'!G15,"fejl i år"),0) -> 0 | P15: 0
A16: "Choose job function" | B16: =+VLOOKUP(A16,Takstblad!$A$5:$B$18,2,FALSE) ->  | H16: 0 | K16: =+IFERROR(IF(K$12=Takstblad!C$3,VLOOKUP('Partner 1'!$A16,takstblad,3,FALSE)*'Partner 1'!C16,"fejl i år"),0) -> 0 | L16: =+IFERROR(IF(L$12=Takstblad!D$3,VLOOKUP('Partner 1'!$A16,takstblad,4,FALSE)*'Partner 1'!D16,"fejl i år"),0) -> 0 | M16: =+IFERROR(IF(M$12=Takstblad!E$3,VLOOKUP('Partner 1'!$A16,takstblad,5,FALSE)*'Partner 1'!E16,"fejl i år"),0) -> 0 | N16: =+IFERROR(IF(N$12=Takstblad!F$3,VLOOKUP('Partner 1'!$A16,takstblad,6,FALSE)*'Partner 1'!F16,"fejl i år"),0) -> 0 | O16: =+IFERROR(IF(O$12=Takstblad!G$3,VLOOKUP('Partner 1'!$A16,takstblad,7,FALSE)*'Partner 1'!G16,"fejl i år"),0) -> 0 | P16: 0
A17: "Choose job function" | B17: =+VLOOKUP(A17,Takstblad!$A$5:$B$18,2,FALSE) ->  | H17: 0 | K17: =+IFERROR(IF(K$12=Takstblad!C$3,VLOOKUP('Partner 1'!$A17,takstblad,3,FALSE)*'Partner 1'!C17,"fejl i år"),0) -> 0 | L17: =+IFERROR(IF(L$12=Takstblad!D$3,VLOOKUP('Partner 1'!$A17,takstblad,4,FALSE)*'Partner 1'!D17,"fejl i år"),0) -> 0 | M17: =+IFERROR(IF(M$12=Takstblad!E$3,VLOOKUP('Partner 1'!$A17,takstblad,5,FALSE)*'Partner 1'!E17,"fejl i år"),0) -> 0 | N17: =+IFERROR(IF(N$12=Takstblad!F$3,VLOOKUP('Partner 1'!$A17,takstblad,6,FALSE)*'Partner 1'!F17,"fejl i år"),0) -> 0 | O17: =+IFERROR(IF(O$12=Takstblad!G$3,VLOOKUP('Partner 1'!$A17,takstblad,7,FALSE)*'Partner 1'!G17,"fejl i år"),0) -> 0 | P17: 0
A18: "Choose job function" | B18: =+VLOOKUP(A18,Takstblad!$A$5:$B$18,2,FALSE) ->  | H18: 0 | K18: =+IFERROR(IF(K$12=Takstblad!C$3,VLOOKUP('Partner 1'!$A18,takstblad,3,FALSE)*'Partner 1'!C18,"fejl i år"),0) -> 0 | L18: =+IFERROR(IF(L$12=Takstblad!D$3,VLOOKUP('Partner 1'!$A18,takstblad,4,FALSE)*'Partner 1'!D18,"fejl i år"),0) -> 0 | M18: =+IFERROR(IF(M$12=Takstblad!E$3,VLOOKUP('Partner 1'!$A18,takstblad,5,FALSE)*'Partner 1'!E18,"fejl i år"),0) -> 0 | N18: =+IFERROR(IF(N$12=Takstblad!F$3,VLOOKUP('Partner 1'!$A18,takstblad,6,FALSE)*'Partner 1'!F18,"fejl i år"),0) -> 0 | O18: =+IFERROR(IF(O$12=Takstblad!G$3,VLOOKUP('Partner 1'!$A18,takstblad,7,FALSE)*'Partner 1'!G18,"fejl i år"),0) -> 0 | P18: 0
A19: "Choose job function" | B19: =+VLOOKUP(A19,Takstblad!$A$5:$B$18,2,FALSE) ->  | H19: 0 | K19: =+IFERROR(IF(K$12=Takstblad!C$3,VLOOKUP('Partner 1'!$A19,takstblad,3,FALSE)*'Partner 1'!C19,"fejl i år"),0) -> 0 | L19: =+IFERROR(IF(L$12=Takstblad!D$3,VLOOKUP('Partner 1'!$A19,takstblad,4,FALSE)*'Partner 1'!D19,"fejl i år"),0) -> 0 | M19: =+IFERROR(IF(M$12=Takstblad!E$3,VLOOKUP('Partner 1'!$A19,takstblad,5,FALSE)*'Partner 1'!E19,"fejl i år"),0) -> 0 | N19: =+IFERROR(IF(N$12=Takstblad!F$3,VLOOKUP('Partner 1'!$A19,takstblad,6,FALSE)*'Partner 1'!F19,"fejl i år"),0) -> 0 | O19: =+IFERROR(IF(O$12=Takstblad!G$3,VLOOKUP('Partner 1'!$A19,takstblad,7,FALSE)*'Partner 1'!G19,"fejl i år"),0) -> 0 | P19: 0
A20: "Choose job function" | B20: =+VLOOKUP(A20,Takstblad!$A$5:$B$18,2,FALSE) ->  | H20: 0 | K20: =+IFERROR(IF(K$12=Takstblad!C$3,VLOOKUP('Partner 1'!$A20,takstblad,3,FALSE)*'Partner 1'!C20,"fejl i år"),0) -> 0 | L20: =+IFERROR(IF(L$12=Takstblad!D$3,VLOOKUP('Partner 1'!$A20,takstblad,4,FALSE)*'Partner 1'!D20,"fejl i år"),0) -> 0 | M20: =+IFERROR(IF(M$12=Takstblad!E$3,VLOOKUP('Partner 1'!$A20,takstblad,5,FALSE)*'Partner 1'!E20,"fejl i år"),0) -> 0 | N20: =+IFERROR(IF(N$12=Takstblad!F$3,VLOOKUP('Partner 1'!$A20,takstblad,6,FALSE)*'Partner 1'!F20,"fejl i år"),0) -> 0 | O20: =+IFERROR(IF(O$12=Takstblad!G$3,VLOOKUP('Partner 1'!$A20,takstblad,7,FALSE)*'Partner 1'!G20,"fejl i år"),0) -> 0 | P20: 0
A21: "Choose job function" | B21: =+VLOOKUP(A21,Takstblad!$A$5:$B$18,2,FALSE) ->  | H21: 0 | K21: =+IFERROR(IF(K$12=Takstblad!C$3,VLOOKUP('Partner 1'!$A21,takstblad,3,FALSE)*'Partner 1'!C21,"fejl i år"),0) -> 0 | L21: =+IFERROR(IF(L$12=Takstblad!D$3,VLOOKUP('Partner 1'!$A21,takstblad,4,FALSE)*'Partner 1'!D21,"fejl i år"),0) -> 0 | M21: =+IFERROR(IF(M$12=Takstblad!E$3,VLOOKUP('Partner 1'!$A21,takstblad,5,FALSE)*'Partner 1'!E21,"fejl i år"),0) -> 0 | N21: =+IFERROR(IF(N$12=Takstblad!F$3,VLOOKUP('Partner 1'!$A21,takstblad,6,FALSE)*'Partner 1'!F21,"fejl i år"),0) -> 0 | O21: =+IFERROR(IF(O$12=Takstblad!G$3,VLOOKUP('Partner 1'!$A21,takstblad,7,FALSE)*'Partner 1'!G21,"fejl i år"),0) -> 0 | P21: 0
A22: "Choose job function" | B22: =+VLOOKUP(A22,Takstblad!$A$5:$B$18,2,FALSE) ->  | H22: 0 | K22: =+IFERROR(IF(K$12=Takstblad!C$3,VLOOKUP('Partner 1'!$A22,takstblad,3,FALSE)*'Partner 1'!C22,"fejl i år"),0) -> 0 | L22: =+IFERROR(IF(L$12=Takstblad!D$3,VLOOKUP('Partner 1'!$A22,takstblad,4,FALSE)*'Partner 1'!D22,"fejl i år"),0) -> 0 | M22: =+IFERROR(IF(M$12=Takstblad!E$3,VLOOKUP('Partner 1'!$A22,takstblad,5,FALSE)*'Partner 1'!E22,"fejl i år"),0) -> 0 | N22: =+IFERROR(IF(N$12=Takstblad!F$3,VLOOKUP('Partner 1'!$A22,takstblad,6,FALSE)*'Partner 1'!F22,"fejl i år"),0) -> 0 | O22: =+IFERROR(IF(O$12=Takstblad!G$3,VLOOKUP('Partner 1'!$A22,takstblad,7,FALSE)*'Partner 1'!G22,"fejl i år"),0) -> 0 | P22: 0
A23: Total months | C23: =SUM(C13:C22) -> 0 | D23: 0 | E23: 0 | F23: 0 | G23: 0 | H23: =SUM(H13:H22) -> 0 | J23: Salary total | K23: =SUM(K13:K22) -> 0 | L23: =SUM(L13:L22) -> 0 | M23: 0 | N23: 0 | O23: 0 | P23: 0
C26: =+C12 -> 2023 | D26: =+D12 -> 2024 | E26: =+E12 -> 2025 | F26: =+F12 -> 2026 | G26: =+G12 -> 2027 | H26: Total
A27: Running costs (consumables etc.) | H27: =SUM(C27:G27) -> 0
A28: Travel costs | H28: =SUM(C28:G28) -> 0
A29: Accomodation | H29: =SUM(C29:G29) -> 0
A30: Equipment | H30: =SUM(C30:G30) -> 0
A31: Other | H31: =SUM(C31:G31) -> 0
A32: Operations Total | C32: =SUM(C27:C31)-C31 -> 0 | D32: =SUM(D27:D31)-D31 -> 0 | E32: =SUM(E27:E31)-E31 -> 0 | F32: =SUM(F27:F31)-F31 -> 0 | G32: =SUM(G27:G31)-G31 -> 0 | H32: =SUM(H27:H31) -> 0
B35: DKK | C35: =+C12 -> 2023 | D35: 2024 | E35: 2025 | F35: 2026 | G35: 2027 | H35: Total
A36: Salary | C36: =+K23 -> 0 | D36: =+L23 -> 0 | E36: =+M23 -> 0 | F36: =+N23 -> 0 | G36: =+O23 -> 0 | H36: =SUM(C36:G36) -> 0
A37: Running costs (consumables etc.) | C37: =+C27 -> 0 | D37: =+D27 -> 0 | E37: =+E27 -> 0 | F37: =+F27 -> 0 | G37: =+G27 -> 0 | H37: =SUM(C37:G37) -> 0
A38: Mobility/travel | C38: =+C28+C29 -> 0 | D38: =+D28+D29 -> 0 | E38: =+E28+E29 -> 0 | F38: =+F28+F29 -> 0 | G38: =+G28+G29 -> 0 | H38: =SUM(C38:G38) -> 0
A39: Equipment | C39: =+C30 -> 0 | D39: =+D30 -> 0 | E39: 0 | F39: 0 | G39: 0 | H39: =SUM(C39:G39) -> 0
A40: Other | C40: =+C31 -> 0 | D40: =+D31 -> 0 | E40: =+E31 -> 0 | F40: =+F31 -> 0 | G40: =+G31 -> 0 | H40: =SUM(C40:G40) -> 0
A41: Total | C41: =SUM(C36:C40) -> 0 | D41: =SUM(D36:D40) -> 0 | E41: 0 | F41: 0 | G41: 0 | H41: 0

Sheet Partner 2
A1: Budgeting CellFood AUFF Flagship
A3: Institute:
A4: Projecttitle:
A5: Projectleader:
A6: Funder: | C6: AUFF
A12: Choose Categori and insert count of months | C12: =+Takstblad!C3 -> 2023 | D12: =+C12+1 -> 2024 | E12: =+D12+1 -> 2025 | F12: =+E12+1 -> 2026 | G12: =+F12+1 -> 2027 | H12: Total | I12: Comment | J12: Salary | K12: =+C12 -> 2023 | L12: =+D12 -> 2024 | M12: =+E12 -> 2025 | N12: =+F12 -> 2026 | O12: =+G12 -> 2027 | P12: Total
A13: "Choose job function" | H13: =SUM(C13:G13) -> 0 | K13: =+IFERROR(IF(K$12=Takstblad!C$3,VLOOKUP('Partner 2'!$A13,takstblad,3,FALSE)*'Partner 2'!C13,"fejl i år"),0) -> 0 | L13: =+IFERROR(IF(L$12=Takstblad!D$3,VLOOKUP('Partner 2'!$A13,takstblad,4,FALSE)*'Partner 2'!D13,"fejl i år"),0) -> 0 | M13: =+IFERROR(IF(M$12=Takstblad!E$3,VLOOKUP('Partner 2'!$A13,takstblad,5,FALSE)*'Partner 2'!E13,"fejl i år"),0) -> 0 | N13: =+IFERROR(IF(N$12=Takstblad!F$3,VLOOKUP('Partner 2'!$A13,takstblad,6,FALSE)*'Partner 2'!F13,"fejl i år"),0) -> 0 | O13: =+IFERROR(IF(O$12=Takstblad!G$3,VLOOKUP('Partner 2'!$A13,takstblad,7,FALSE)*'Partner 2'!G13,"fejl i år"),0) -> 0 | P13: =SUM(K13:O13) -> 0
A14: "Choose job function" | H14: 0 | K14: =+IFERROR(IF(K$12=Takstblad!C$3,VLOOKUP('Partner 2'!$A14,takstblad,3,FALSE)*'Partner 2'!C14,"fejl i år"),0) -> 0 | L14: =+IFERROR(IF(L$12=Takstblad!D$3,VLOOKUP('Partner 2'!$A14,takstblad,4,FALSE)*'Partner 2'!D14,"fejl i år"),0) -> 0 | M14: =+IFERROR(IF(M$12=Takstblad!E$3,VLOOKUP('Partner 2'!$A14,takstblad,5,FALSE)*'Partner 2'!E14,"fejl i år"),0) -> 0 | N14: =+IFERROR(IF(N$12=Takstblad!F$3,VLOOKUP('Partner 2'!$A14,takstblad,6,FALSE)*'Partner 2'!F14,"fejl i år"),0) -> 0 | O14: =+IFERROR(IF(O$12=Takstblad!G$3,VLOOKUP('Partner 2'!$A14,takstblad,7,FALSE)*'Partner 2'!G14,"fejl i år"),0) -> 0 | P14: 0
A15: "Choose job function" | H15: 0 | K15: =+IFERROR(IF(K$12=Takstblad!C$3,VLOOKUP('Partner 2'!$A15,takstblad,3,FALSE)*'Partner 2'!C15,"fejl i år"),0) -> 0 | L15: =+IFERROR(IF(L$12=Takstblad!D$3,VLOOKUP('Partner 2'!$A15,takstblad,4,FALSE)*'Partner 2'!D15,"fejl i år"),0) -> 0 | M15: =+IFERROR(IF(M$12=Takstblad!E$3,VLOOKUP('Partner 2'!$A15,takstblad,5,FALSE)*'Partner 2'!E15,"fejl i år"),0) -> 0 | N15: =+IFERROR(IF(N$12=Takstblad!F$3,VLOOKUP('Partner 2'!$A15,takstblad,6,FALSE)*'Partner 2'!F15,"fejl i år"),0) -> 0 | O15: =+IFERROR(IF(O$12=Takstblad!G$3,VLOOKUP('Partner 2'!$A15,takstblad,7,FALSE)*'Partner 2'!G15,"fejl i år"),0) -> 0 | P15: 0
A16: "Choose job function" | H16: 0 | K16: =+IFERROR(IF(K$12=Takstblad!C$3,VLOOKUP('Partner 2'!$A16,takstblad,3,FALSE)*'Partner 2'!C16,"fejl i år"),0) -> 0 | L16: =+IFERROR(IF(L$12=Takstblad!D$3,VLOOKUP('Partner 2'!$A16,takstblad,4,FALSE)*'Partner 2'!D16,"fejl i år"),0) -> 0 | M16: =+IFERROR(IF(M$12=Takstblad!E$3,VLOOKUP('Partner 2'!$A16,takstblad,5,FALSE)*'Partner 2'!E16,"fejl i år"),0) -> 0 | N16: =+IFERROR(IF(N$12=Takstblad!F$3,VLOOKUP('Partner 2'!$A16,takstblad,6,FALSE)*'Partner 2'!F16,"fejl i år"),0) -> 0 | O16: =+IFERROR(IF(O$12=Takstblad!G$3,VLOOKUP('Partner 2'!$A16,takstblad,7,FALSE)*'Partner 2'!G16,"fejl i år"),0) -> 0 | P16: 0
A17: "Choose job function" | H17: 0 | K17: =+IFERROR(IF(K$12=Takstblad!C$3,VLOOKUP('Partner 2'!$A17,takstblad,3,FALSE)*'Partner 2'!C17,"fejl i år"),0) -> 0 | L17: =+IFERROR(IF(L$12=Takstblad!D$3,VLOOKUP('Partner 2'!$A17,takstblad,4,FALSE)*'Partner 2'!D17,"fejl i år"),0) -> 0 | M17: =+IFERROR(IF(M$12=Takstblad!E$3,VLOOKUP('Partner 2'!$A17,takstblad,5,FALSE)*'Partner 2'!E17,"fejl i år"),0) -> 0 | N17: =+IFERROR(IF(N$12=Takstblad!F$3,VLOOKUP('Partner 2'!$A17,takstblad,6,FALSE)*'Partner 2'!F17,"fejl i år"),0) -> 0 | O17: =+IFERROR(IF(O$12=Takstblad!G$3,VLOOKUP('Partner 2'!$A17,takstblad,7,FALSE)*'Partner 2'!G17,"fejl i år"),0) -> 0 | P17: 0
A18: "Choose job function" | H18: 0 | K18: =+IFERROR(IF(K$12=Takstblad!C$3,VLOOKUP('Partner 2'!$A18,takstblad,3,FALSE)*'Partner 2'!C18,"fejl i år"),0) -> 0 | L18: =+IFERROR(IF(L$12=Takstblad!D$3,VLOOKUP('Partner 2'!$A18,takstblad,4,FALSE)*'Partner 2'!D18,"fejl i år"),0) -> 0 | M18: =+IFERROR(IF(M$12=Takstblad!E$3,VLOOKUP('Partner 2'!$A18,takstblad,5,FALSE)*'Partner 2'!E18,"fejl i år"),0) -> 0 | N18: =+IFERROR(IF(N$12=Takstblad!F$3,VLOOKUP('Partner 2'!$A18,takstblad,6,FALSE)*'Partner 2'!F18,"fejl i år"),0) -> 0 | O18: =+IFERROR(IF(O$12=Takstblad!G$3,VLOOKUP('Partner 2'!$A18,takstblad,7,FALSE)*'Partner 2'!G18,"fejl i år"),0) -> 0 | P18: 0
A19: "Choose job function" | H19: 0 | K19: =+IFERROR(IF(K$12=Takstblad!C$3,VLOOKUP('Partner 2'!$A19,takstblad,3,FALSE)*'Partner 2'!C19,"fejl i år"),0) -> 0 | L19: =+IFERROR(IF(L$12=Takstblad!D$3,VLOOKUP('Partner 2'!$A19,takstblad,4,FALSE)*'Partner 2'!D19,"fejl i år"),0) -> 0 | M19: =+IFERROR(IF(M$12=Takstblad!E$3,VLOOKUP('Partner 2'!$A19,takstblad,5,FALSE)*'Partner 2'!E19,"fejl i år"),0) -> 0 | N19: =+IFERROR(IF(N$12=Takstblad!F$3,VLOOKUP('Partner 2'!$A19,takstblad,6,FALSE)*'Partner 2'!F19,"fejl i år"),0) -> 0 | O19: =+IFERROR(IF(O$12=Takstblad!G$3,VLOOKUP('Partner 2'!$A19,takstblad,7,FALSE)*'Partner 2'!G19,"fejl i år"),0) -> 0 | P19: 0
A20: "Choose job function" | H20: 0 | K20: =+IFERROR(IF(K$12=Takstblad!C$3,VLOOKUP('Partner 2'!$A20,takstblad,3,FALSE)*'Partner 2'!C20,"fejl i år"),0) -> 0 | L20: =+IFERROR(IF(L$12=Takstblad!D$3,VLOOKUP('Partner 2'!$A20,takstblad,4,FALSE)*'Partner 2'!D20,"fejl i år"),0) -> 0 | M20: =+IFERROR(IF(M$12=Takstblad!E$3,VLOOKUP('Partner 2'!$A20,takstblad,5,FALSE)*'Partner 2'!E20,"fejl i år"),0) -> 0 | N20: =+IFERROR(IF(N$12=Takstblad!F$3,VLOOKUP('Partner 2'!$A20,takstblad,6,FALSE)*'Partner 2'!F20,"fejl i år"),0) -> 0 | O20: =+IFERROR(IF(O$12=Takstblad!G$3,VLOOKUP('Partner 2'!$A20,takstblad,7,FALSE)*'Partner 2'!G20,"fejl i år"),0) -> 0 | P20: 0
A21: "Choose job function" | H21: 0 | K21: =+IFERROR(IF(K$12=Takstblad!C$3,VLOOKUP('Partner 2'!$A21,takstblad,3,FALSE)*'Partner 2'!C21,"fejl i år"),0) -> 0 | L21: =+IFERROR(IF(L$12=Takstblad!D$3,VLOOKUP('Partner 2'!$A21,takstblad,4,FALSE)*'Partner 2'!D21,"fejl i år"),0) -> 0 | M21: =+IFERROR(IF(M$12=Takstblad!E$3,VLOOKUP('Partner 2'!$A21,takstblad,5,FALSE)*'Partner 2'!E21,"fejl i år"),0) -> 0 | N21: =+IFERROR(IF(N$12=Takstblad!F$3,VLOOKUP('Partner 2'!$A21,takstblad,6,FALSE)*'Partner 2'!F21,"fejl i år"),0) -> 0 | O21: =+IFERROR(IF(O$12=Takstblad!G$3,VLOOKUP('Partner 2'!$A21,takstblad,7,FALSE)*'Partner 2'!G21,"fejl i år"),0) -> 0 | P21: 0
A22: "Choose job function" | H22: 0 | K22: =+IFERROR(IF(K$12=Takstblad!C$3,VLOOKUP('Partner 2'!$A22,takstblad,3,FALSE)*'Partner 2'!C22,"fejl i år"),0) -> 0 | L22: =+IFERROR(IF(L$12=Takstblad!D$3,VLOOKUP('Partner 2'!$A22,takstblad,4,FALSE)*'Partner 2'!D22,"fejl i år"),0) -> 0 | M22: =+IFERROR(IF(M$12=Takstblad!E$3,VLOOKUP('Partner 2'!$A22,takstblad,5,FALSE)*'Partner 2'!E22,"fejl i år"),0) -> 0 | N22: =+IFERROR(IF(N$12=Takstblad!F$3,VLOOKUP('Partner 2'!$A22,takstblad,6,FALSE)*'Partner 2'!F22,"fejl i år"),0) -> 0 | O22: =+IFERROR(IF(O$12=Takstblad!G$3,VLOOKUP('Partner 2'!$A22,takstblad,7,FALSE)*'Partner 2'!G22,"fejl i år"),0) -> 0 | P22: 0
A23: Total months | C23: =SUM(C13:C22) -> 0 | D23: 0 | E23: 0 | F23: 0 | G23: 0 | H23: =SUM(H13:H22) -> 0 | J23: Salary total | K23: =SUM(K13:K22) -> 0 | L23: =SUM(L13:L22) -> 0 | M23: 0 | N23: 0 | O23: 0 | P23: 0
C26: =+C12 -> 2023 | D26: =+D12 -> 2024 | E26: =+E12 -> 2025 | F26: =+F12 -> 2026 | G26: =+G12 -> 2027 | H26: Total
A27: Running costs (consumables etc.) | H27: =SUM(C27:G27) -> 0
A28: Travel costs | H28: =SUM(C28:G28) -> 0
A29: Accomodation | H29: =SUM(C29:G29) -> 0
A30: Equipment | H30: =SUM(C30:G30) -> 0
A31: Other | H31: =SUM(C31:G31) -> 0
A32: Operations Total | C32: =SUM(C27:C31)-C31 -> 0 | D32: =SUM(D27:D31)-D31 -> 0 | E32: =SUM(E27:E31)-E31 -> 0 | F32: =SUM(F27:F31)-F31 -> 0 | G32: =SUM(G27:G31)-G31 -> 0 | H32: =SUM(H27:H31) -> 0
B35: DKK | C35: =+C12 -> 2023 | D35: 2024 | E35: 2025 | F35: 2026 | G35: 2027 | H35: Total
A36: Salary | C36: =+K23 -> 0 | D36: =+L23 -> 0 | E36: =+M23 -> 0 | F36: =+N23 -> 0 | G36: =+O23 -> 0 | H36: =SUM(C36:G36) -> 0
A37: Running costs (consumables etc.) | C37: =+C27 -> 0 | D37: =+D27 -> 0 | E37: =+E27 -> 0 | F37: =+F27 -> 0 | G37: =+G27 -> 0 | H37: =SUM(C37:G37) -> 0
A38: Mobility/travel | C38: =+C28+C29 -> 0 | D38: =+D28+D29 -> 0 | E38: =+E28+E29 -> 0 | F38: =+F28+F29 -> 0 | G38: =+G28+G29 -> 0 | H38: =SUM(C38:G38) -> 0
A39: Equipment | C39: =+C30 -> 0 | D39: =+D30 -> 0 | E39: 0 | F39: 0 | G39: 0 | H39: =SUM(C39:G39) -> 0
A40: Other | C40: =+C31 -> 0 | D40: =+D31 -> 0 | E40: =+E31 -> 0 | F40: =+F31 -> 0 | G40: =+G31 -> 0 | H40: =SUM(C40:G40) -> 0
A41: Total | C41: =SUM(C36:C40) -> 0 | D41: =SUM(D36:D40) -> 0 | E41: 0 | F41: 0 | G41: 0 | H41: 0

Sheet Partner 3
A1: Budgeting CellFood AUFF Flagship
A3: Institute:
A4: Projecttitle:
A5: Projectleader:
A6: Funder: | C6: AUFF
A12: Choose Categori and insert count of months | C12: =+Takstblad!C3 -> 2023 | D12: =+C12+1 -> 2024 | E12: =+D12+1 -> 2025 | F12: =+E12+1 -> 2026 | G12: =+F12+1 -> 2027 | H12: Total | I12: Comment | J12: Salary | K12: =+C12 -> 2023 | L12: =+D12 -> 2024 | M12: =+E12 -> 2025 | N12: =+F12 -> 2026 | O12: =+G12 -> 2027 | P12: Total
A13: "Choose job function" | H13: =SUM(C13:G13) -> 0 | K13: =+IFERROR(IF(K$12=Takstblad!C$3,VLOOKUP('Partner 3'!$A13,takstblad,3,FALSE)*'Partner 3'!C13,"fejl i år"),0) -> 0 | L13: =+IFERROR(IF(L$12=Takstblad!D$3,VLOOKUP('Partner 3'!$A13,takstblad,4,FALSE)*'Partner 3'!D13,"fejl i år"),0) -> 0 | M13: =+IFERROR(IF(M$12=Takstblad!E$3,VLOOKUP('Partner 3'!$A13,takstblad,5,FALSE)*'Partner 3'!E13,"fejl i år"),0) -> 0 | N13: =+IFERROR(IF(N$12=Takstblad!F$3,VLOOKUP('Partner 3'!$A13,takstblad,6,FALSE)*'Partner 3'!F13,"fejl i år"),0) -> 0 | O13: =+IFERROR(IF(O$12=Takstblad!G$3,VLOOKUP('Partner 3'!$A13,takstblad,7,FALSE)*'Partner 3'!G13,"fejl i år"),0) -> 0 | P13: =SUM(K13:O13) -> 0
A14: "Choose job function" | H14: 0 | K14: =+IFERROR(IF(K$12=Takstblad!C$3,VLOOKUP('Partner 3'!$A14,takstblad,3,FALSE)*'Partner 3'!C14,"fejl i år"),0) -> 0 | L14: =+IFERROR(IF(L$12=Takstblad!D$3,VLOOKUP('Partner 3'!$A14,takstblad,4,FALSE)*'Partner 3'!D14,"fejl i år"),0) -> 0 | M14: =+IFERROR(IF(M$12=Takstblad!E$3,VLOOKUP('Partner 3'!$A14,takstblad,5,FALSE)*'Partner 3'!E14,"fejl i år"),0) -> 0 | N14: =+IFERROR(IF(N$12=Takstblad!F$3,VLOOKUP('Partner 3'!$A14,takstblad,6,FALSE)*'Partner 3'!F14,"fejl i år"),0) -> 0 | O14: =+IFERROR(IF(O$12=Takstblad!G$3,VLOOKUP('Partner 3'!$A14,takstblad,7,FALSE)*'Partner 3'!G14,"fejl i år"),0) -> 0 | P14: 0
A15: "Choose job function" | H15: 0 | K15: =+IFERROR(IF(K$12=Takstblad!C$3,VLOOKUP('Partner 3'!$A15,takstblad,3,FALSE)*'Partner 3'!C15,"fejl i år"),0) -> 0 | L15: =+IFERROR(IF(L$12=Takstblad!D$3,VLOOKUP('Partner 3'!$A15,takstblad,4,FALSE)*'Partner 3'!D15,"fejl i år"),0) -> 0 | M15: =+IFERROR(IF(M$12=Takstblad!E$3,VLOOKUP('Partner 3'!$A15,takstblad,5,FALSE)*'Partner 3'!E15,"fejl i år"),0) -> 0 | N15: =+IFERROR(IF(N$12=Takstblad!F$3,VLOOKUP('Partner 3'!$A15,takstblad,6,FALSE)*'Partner 3'!F15,"fejl i år"),0) -> 0 | O15: =+IFERROR(IF(O$12=Takstblad!G$3,VLOOKUP('Partner 3'!$A15,takstblad,7,FALSE)*'Partner 3'!G15,"fejl i år"),0) -> 0 | P15: 0
A16: "Choose job function" | H16: 0 | K16: =+IFERROR(IF(K$12=Takstblad!C$3,VLOOKUP('Partner 3'!$A16,takstblad,3,FALSE)*'Partner 3'!C16,"fejl i år"),0) -> 0 | L16: =+IFERROR(IF(L$12=Takstblad!D$3,VLOOKUP('Partner 3'!$A16,takstblad,4,FALSE)*'Partner 3'!D16,"fejl i år"),0) -> 0 | M16: =+IFERROR(IF(M$12=Takstblad!E$3,VLOOKUP('Partner 3'!$A16,takstblad,5,FALSE)*'Partner 3'!E16,"fejl i år"),0) -> 0 | N16: =+IFERROR(IF(N$12=Takstblad!F$3,VLOOKUP('Partner 3'!$A16,takstblad,6,FALSE)*'Partner 3'!F16,"fejl i år"),0) -> 0 | O16: =+IFERROR(IF(O$12=Takstblad!G$3,VLOOKUP('Partner 3'!$A16,takstblad,7,FALSE)*'Partner 3'!G16,"fejl i år"),0) -> 0 | P16: 0
A17: "Choose job function" | H17: 0 | K17: =+IFERROR(IF(K$12=Takstblad!C$3,VLOOKUP('Partner 3'!$A17,takstblad,3,FALSE)*'Partner 3'!C17,"fejl i år"),0) -> 0 | L17: =+IFERROR(IF(L$12=Takstblad!D$3,VLOOKUP('Partner 3'!$A17,takstblad,4,FALSE)*'Partner 3'!D17,"fejl i år"),0) -> 0 | M17: =+IFERROR(IF(M$12=Takstblad!E$3,VLOOKUP('Partner 3'!$A17,takstblad,5,FALSE)*'Partner 3'!E17,"fejl i år"),0) -> 0 | N17: =+IFERROR(IF(N$12=Takstblad!F$3,VLOOKUP('Partner 3'!$A17,takstblad,6,FALSE)*'Partner 3'!F17,"fejl i år"),0) -> 0 | O17: =+IFERROR(IF(O$12=Takstblad!G$3,VLOOKUP('Partner 3'!$A17,takstblad,7,FALSE)*'Partner 3'!G17,"fejl i år"),0) -> 0 | P17: 0
A18: "Choose job function" | H18: 0 | K18: =+IFERROR(IF(K$12=Takstblad!C$3,VLOOKUP('Partner 3'!$A18,takstblad,3,FALSE)*'Partner 3'!C18,"fejl i år"),0) -> 0 | L18: =+IFERROR(IF(L$12=Takstblad!D$3,VLOOKUP('Partner 3'!$A18,takstblad,4,FALSE)*'Partner 3'!D18,"fejl i år"),0) -> 0 | M18: =+IFERROR(IF(M$12=Takstblad!E$3,VLOOKUP('Partner 3'!$A18,takstblad,5,FALSE)*'Partner 3'!E18,"fejl i år"),0) -> 0 | N18: =+IFERROR(IF(N$12=Takstblad!F$3,VLOOKUP('Partner 3'!$A18,takstblad,6,FALSE)*'Partner 3'!F18,"fejl i år"),0) -> 0 | O18: =+IFERROR(IF(O$12=Takstblad!G$3,VLOOKUP('Partner 3'!$A18,takstblad,7,FALSE)*'Partner 3'!G18,"fejl i år"),0) -> 0 | P18: 0
A19: "Choose job function" | H19: 0 | K19: =+IFERROR(IF(K$12=Takstblad!C$3,VLOOKUP('Partner 3'!$A19,takstblad,3,FALSE)*'Partner 3'!C19,"fejl i år"),0) -> 0 | L19: =+IFERROR(IF(L$12=Takstblad!D$3,VLOOKUP('Partner 3'!$A19,takstblad,4,FALSE)*'Partner 3'!D19,"fejl i år"),0) -> 0 | M19: =+IFERROR(IF(M$12=Takstblad!E$3,VLOOKUP('Partner 3'!$A19,takstblad,5,FALSE)*'Partner 3'!E19,"fejl i år"),0) -> 0 | N19: =+IFERROR(IF(N$12=Takstblad!F$3,VLOOKUP('Partner 3'!$A19,takstblad,6,FALSE)*'Partner 3'!F19,"fejl i år"),0) -> 0 | O19: =+IFERROR(IF(O$12=Takstblad!G$3,VLOOKUP('Partner 3'!$A19,takstblad,7,FALSE)*'Partner 3'!G19,"fejl i år"),0) -> 0 | P19: 0
A20: "Choose job function" | H20: 0 | K20: =+IFERROR(IF(K$12=Takstblad!C$3,VLOOKUP('Partner 3'!$A20,takstblad,3,FALSE)*'Partner 3'!C20,"fejl i år"),0) -> 0 | L20: =+IFERROR(IF(L$12=Takstblad!D$3,VLOOKUP('Partner 3'!$A20,takstblad,4,FALSE)*'Partner 3'!D20,"fejl i år"),0) -> 0 | M20: =+IFERROR(IF(M$12=Takstblad!E$3,VLOOKUP('Partner 3'!$A20,takstblad,5,FALSE)*'Partner 3'!E20,"fejl i år"),0) -> 0 | N20: =+IFERROR(IF(N$12=Takstblad!F$3,VLOOKUP('Partner 3'!$A20,takstblad,6,FALSE)*'Partner 3'!F20,"fejl i år"),0) -> 0 | O20: =+IFERROR(IF(O$12=Takstblad!G$3,VLOOKUP('Partner 3'!$A20,takstblad,7,FALSE)*'Partner 3'!G20,"fejl i år"),0) -> 0 | P20: 0
A21: "Choose job function" | H21: 0 | K21: =+IFERROR(IF(K$12=Takstblad!C$3,VLOOKUP('Partner 3'!$A21,takstblad,3,FALSE)*'Partner 3'!C21,"fejl i år"),0) -> 0 | L21: =+IFERROR(IF(L$12=Takstblad!D$3,VLOOKUP('Partner 3'!$A21,takstblad,4,FALSE)*'Partner 3'!D21,"fejl i år"),0) -> 0 | M21: =+IFERROR(IF(M$12=Takstblad!E$3,VLOOKUP('Partner 3'!$A21,takstblad,5,FALSE)*'Partner 3'!E21,"fejl i år"),0) -> 0 | N21: =+IFERROR(IF(N$12=Takstblad!F$3,VLOOKUP('Partner 3'!$A21,takstblad,6,FALSE)*'Partner 3'!F21,"fejl i år"),0) -> 0 | O21: =+IFERROR(IF(O$12=Takstblad!G$3,VLOOKUP('Partner 3'!$A21,takstblad,7,FALSE)*'Partner 3'!G21,"fejl i år"),0) -> 0 | P21: 0
A22: "Choose job function" | H22: 0 | K22: =+IFERROR(IF(K$12=Takstblad!C$3,VLOOKUP('Partner 3'!$A22,takstblad,3,FALSE)*'Partner 3'!C22,"fejl i år"),0) -> 0 | L22: =+IFERROR(IF(L$12=Takstblad!D$3,VLOOKUP('Partner 3'!$A22,takstblad,4,FALSE)*'Partner 3'!D22,"fejl i år"),0) -> 0 | M22: =+IFERROR(IF(M$12=Takstblad!E$3,VLOOKUP('Partner 3'!$A22,takstblad,5,FALSE)*'Partner 3'!E22,"fejl i år"),0) -> 0 | N22: =+IFERROR(IF(N$12=Takstblad!F$3,VLOOKUP('Partner 3'!$A22,takstblad,6,FALSE)*'Partner 3'!F22,"fejl i år"),0) -> 0 | O22: =+IFERROR(IF(O$12=Takstblad!G$3,VLOOKUP('Partner 3'!$A22,takstblad,7,FALSE)*'Partner 3'!G22,"fejl i år"),0) -> 0 | P22: 0
A23: Total months | C23: =SUM(C13:C22) -> 0 | D23: 0 | E23: 0 | F23: 0 | G23: 0 | H23: =SUM(H13:H22) -> 0 | J23: Salary total | K23: =SUM(K13:K22) -> 0 | L23: =SUM(L13:L22) -> 0 | M23: 0 | N23: 0 | O23: 0 | P23: 0
C26: =+C12 -> 2023 | D26: =+D12 -> 2024 | E26: =+E12 -> 2025 | F26: =+F12 -> 2026 | G26: =+G12 -> 2027 | H26: Total
A27: Running costs (consumables etc.) | H27: =SUM(C27:G27) -> 0
A28: Travel costs | H28: =SUM(C28:G28) -> 0
A29: Accomodation | H29: =SUM(C29:G29) -> 0
A30: Equipment | H30: =SUM(C30:G30) -> 0
A31: Other | H31: =SUM(C31:G31) -> 0
A32: Operations Total | C32: =SUM(C27:C31)-C31 -> 0 | D32: =SUM(D27:D31)-D31 -> 0 | E32: =SUM(E27:E31)-E31 -> 0 | F32: =SUM(F27:F31)-F31 -> 0 | G32: =SUM(G27:G31)-G31 -> 0 | H32: =SUM(H27:H31) -> 0
B35: DKK | C35: =+C12 -> 2023 | D35: 2024 | E35: 2025 | F35: 2026 | G35: 2027 | H35: Total
A36: Salary | C36: =+K23 -> 0 | D36: =+L23 -> 0 | E36: =+M23 -> 0 | F36: =+N23 -> 0 | G36: =+O23 -> 0 | H36: =SUM(C36:G36) -> 0
A37: Running costs (consumables etc.) | C37: =+C27 -> 0 | D37: =+D27 -> 0 | E37: =+E27 -> 0 | F37: =+F27 -> 0 | G37: =+G27 -> 0 | H37: =SUM(C37:G37) -> 0
A38: Mobility/travel | C38: =+C28+C29 -> 0 | D38: =+D28+D29 -> 0 | E38: =+E28+E29 -> 0 | F38: =+F28+F29 -> 0 | G38: =+G28+G29 -> 0 | H38: =SUM(C38:G38) -> 0
A39: Equipment | C39: =+C30 -> 0 | D39: =+D30 -> 0 | E39: 0 | F39: 0 | G39: 0 | H39: =SUM(C39:G39) -> 0
A40: Other | C40: =+C31 -> 0 | D40: =+D31 -> 0 | E40: =+E31 -> 0 | F40: =+F31 -> 0 | G40: =+G31 -> 0 | H40: =SUM(C40:G40) -> 0
A41: Total | C41: =SUM(C36:C40) -> 0 | D41: =SUM(D36:D40) -> 0 | E41: 0 | F41: 0 | G41: 0 | H41: 0

Sheet Partner 4
A1: Budgeting CellFood AUFF Flagship
A3: Institute:
A4: Projecttitle:
A5: Projectleader:
A6: Funder: | C6: AUFF
A12: Choose Categori and insert count of months | C12: =+Takstblad!C3 -> 2023 | D12: =+C12+1 -> 2024 | E12: =+D12+1 -> 2025 | F12: =+E12+1 -> 2026 | G12: =+F12+1 -> 2027 | H12: Total | I12: Comment | J12: Salary | K12: =+C12 -> 2023 | L12: =+D12 -> 2024 | M12: =+E12 -> 2025 | N12: =+F12 -> 2026 | O12: =+G12 -> 2027 | P12: Total
A13: "Choose job function" | H13: =SUM(C13:G13) -> 0 | K13: =+IFERROR(IF(K$12=Takstblad!C$3,VLOOKUP('Partner 4'!$A13,takstblad,3,FALSE)*'Partner 4'!C13,"fejl i år"),0) -> 0 | L13: =+IFERROR(IF(L$12=Takstblad!D$3,VLOOKUP('Partner 4'!$A13,takstblad,4,FALSE)*'Partner 4'!D13,"fejl i år"),0) -> 0 | M13: =+IFERROR(IF(M$12=Takstblad!E$3,VLOOKUP('Partner 4'!$A13,takstblad,5,FALSE)*'Partner 4'!E13,"fejl i år"),0) -> 0 | N13: =+IFERROR(IF(N$12=Takstblad!F$3,VLOOKUP('Partner 4'!$A13,takstblad,6,FALSE)*'Partner 4'!F13,"fejl i år"),0) -> 0 | O13: =+IFERROR(IF(O$12=Takstblad!G$3,VLOOKUP('Partner 4'!$A13,takstblad,7,FALSE)*'Partner 4'!G13,"fejl i år"),0) -> 0 | P13: =SUM(K13:O13) -> 0
A14: "Choose job function" | H14: 0 | K14: =+IFERROR(IF(K$12=Takstblad!C$3,VLOOKUP('Partner 4'!$A14,takstblad,3,FALSE)*'Partner 4'!C14,"fejl i år"),0) -> 0 | L14: =+IFERROR(IF(L$12=Takstblad!D$3,VLOOKUP('Partner 4'!$A14,takstblad,4,FALSE)*'Partner 4'!D14,"fejl i år"),0) -> 0 | M14: =+IFERROR(IF(M$12=Takstblad!E$3,VLOOKUP('Partner 4'!$A14,takstblad,5,FALSE)*'Partner 4'!E14,"fejl i år"),0) -> 0 | N14: =+IFERROR(IF(N$12=Takstblad!F$3,VLOOKUP('Partner 4'!$A14,takstblad,6,FALSE)*'Partner 4'!F14,"fejl i år"),0) -> 0 | O14: =+IFERROR(IF(O$12=Takstblad!G$3,VLOOKUP('Partner 4'!$A14,takstblad,7,FALSE)*'Partner 4'!G14,"fejl i år"),0) -> 0 | P14: 0
A15: "Choose job function" | H15: 0 | K15: =+IFERROR(IF(K$12=Takstblad!C$3,VLOOKUP('Partner 4'!$A15,takstblad,3,FALSE)*'Partner 4'!C15,"fejl i år"),0) -> 0 | L15: =+IFERROR(IF(L$12=Takstblad!D$3,VLOOKUP('Partner 4'!$A15,takstblad,4,FALSE)*'Partner 4'!D15,"fejl i år"),0) -> 0 | M15: =+IFERROR(IF(M$12=Takstblad!E$3,VLOOKUP('Partner 4'!$A15,takstblad,5,FALSE)*'Partner 4'!E15,"fejl i år"),0) -> 0 | N15: =+IFERROR(IF(N$12=Takstblad!F$3,VLOOKUP('Partner 4'!$A15,takstblad,6,FALSE)*'Partner 4'!F15,"fejl i år"),0) -> 0 | O15: =+IFERROR(IF(O$12=Takstblad!G$3,VLOOKUP('Partner 4'!$A15,takstblad,7,FALSE)*'Partner 4'!G15,"fejl i år"),0) -> 0 | P15: 0
A16: "Choose job function" | H16: 0 | K16: =+IFERROR(IF(K$12=Takstblad!C$3,VLOOKUP('Partner 4'!$A16,takstblad,3,FALSE)*'Partner 4'!C16,"fejl i år"),0) -> 0 | L16: =+IFERROR(IF(L$12=Takstblad!D$3,VLOOKUP('Partner 4'!$A16,takstblad,4,FALSE)*'Partner 4'!D16,"fejl i år"),0) -> 0 | M16: =+IFERROR(IF(M$12=Takstblad!E$3,VLOOKUP('Partner 4'!$A16,takstblad,5,FALSE)*'Partner 4'!E16,"fejl i år"),0) -> 0 | N16: =+IFERROR(IF(N$12=Takstblad!F$3,VLOOKUP('Partner 4'!$A16,takstblad,6,FALSE)*'Partner 4'!F16,"fejl i år"),0) -> 0 | O16: =+IFERROR(IF(O$12=Takstblad!G$3,VLOOKUP('Partner 4'!$A16,takstblad,7,FALSE)*'Partner 4'!G16,"fejl i år"),0) -> 0 | P16: 0
A17: "Choose job function" | H17: 0 | K17: =+IFERROR(IF(K$12=Takstblad!C$3,VLOOKUP('Partner 4'!$A17,takstblad,3,FALSE)*'Partner 4'!C17,"fejl i år"),0) -> 0 | L17: =+IFERROR(IF(L$12=Takstblad!D$3,VLOOKUP('Partner 4'!$A17,takstblad,4,FALSE)*'Partner 4'!D17,"fejl i år"),0) -> 0 | M17: =+IFERROR(IF(M$12=Takstblad!E$3,VLOOKUP('Partner 4'!$A17,takstblad,5,FALSE)*'Partner 4'!E17,"fejl i år"),0) -> 0 | N17: =+IFERROR(IF(N$12=Takstblad!F$3,VLOOKUP('Partner 4'!$A17,takstblad,6,FALSE)*'Partner 4'!F17,"fejl i år"),0) -> 0 | O17: =+IFERROR(IF(O$12=Takstblad!G$3,VLOOKUP('Partner 4'!$A17,takstblad,7,FALSE)*'Partner 4'!G17,"fejl i år"),0) -> 0 | P17: 0
A18: "Choose job function" | H18: 0 | K18: =+IFERROR(IF(K$12=Takstblad!C$3,VLOOKUP('Partner 4'!$A18,takstblad,3,FALSE)*'Partner 4'!C18,"fejl i år"),0) -> 0 | L18: =+IFERROR(IF(L$12=Takstblad!D$3,VLOOKUP('Partner 4'!$A18,takstblad,4,FALSE)*'Partner 4'!D18,"fejl i år"),0) -> 0 | M18: =+IFERROR(IF(M$12=Takstblad!E$3,VLOOKUP('Partner 4'!$A18,takstblad,5,FALSE)*'Partner 4'!E18,"fejl i år"),0) -> 0 | N18: =+IFERROR(IF(N$12=Takstblad!F$3,VLOOKUP([1]Partner4!$A18,takstblad,6,FALSE)*'Partner 4'!F18,"fejl i år"),0) -> 0 | O18: =+IFERROR(IF(O$12=Takstblad!G$3,VLOOKUP('Partner 4'!$A18,takstblad,7,FALSE)*'Partner 4'!G18,"fejl i år"),0) -> 0 | P18: 0
A19: "Choose job function" | H19: 0 | K19: =+IFERROR(IF(K$12=Takstblad!C$3,VLOOKUP('Partner 4'!$A19,takstblad,3,FALSE)*'Partner 4'!C19,"fejl i år"),0) -> 0 | L19: =+IFERROR(IF(L$12=Takstblad!D$3,VLOOKUP('Partner 4'!$A19,takstblad,4,FALSE)*'Partner 1'!D19,"fejl i år"),0) -> 0 | M19: =+IFERROR(IF(M$12=Takstblad!E$3,VLOOKUP('Partner 4'!$A19,takstblad,5,FALSE)*'Partner 4'!E19,"fejl i år"),0) -> 0 | N19: =+IFERROR(IF(N$12=Takstblad!F$3,VLOOKUP('Partner 4'!$A19,takstblad,6,FALSE)*'Partner 4'!F19,"fejl i år"),0) -> 0 | O19: =+IFERROR(IF(O$12=Takstblad!G$3,VLOOKUP('Partner 4'!$A19,takstblad,7,FALSE)*'Partner 4'!G19,"fejl i år"),0) -> 0 | P19: 0
A20: "Choose job function" | H20: 0 | K20: =+IFERROR(IF(K$12=Takstblad!C$3,VLOOKUP('Partner 4'!$A20,takstblad,3,FALSE)*'Partner 4'!C20,"fejl i år"),0) -> 0 | L20: =+IFERROR(IF(L$12=Takstblad!D$3,VLOOKUP('Partner 4'!$A20,takstblad,4,FALSE)*'Partner 4'!D20,"fejl i år"),0) -> 0 | M20: =+IFERROR(IF(M$12=Takstblad!E$3,VLOOKUP('Partner 4'!$A20,takstblad,5,FALSE)*'Partner 4'!E20,"fejl i år"),0) -> 0 | N20: =+IFERROR(IF(N$12=Takstblad!F$3,VLOOKUP('Partner 4'!$A20,takstblad,6,FALSE)*'Partner 4'!F20,"fejl i år"),0) -> 0 | O20: =+IFERROR(IF(O$12=Takstblad!G$3,VLOOKUP('Partner 4'!$A20,takstblad,7,FALSE)*'Partner 4'!G20,"fejl i år"),0) -> 0 | P20: 0
A21: "Choose job function" | H21: 0 | K21: =+IFERROR(IF(K$12=Takstblad!C$3,VLOOKUP('Partner 4'!$A21,takstblad,3,FALSE)*'Partner 4'!C21,"fejl i år"),0) -> 0 | L21: =+IFERROR(IF(L$12=Takstblad!D$3,VLOOKUP('Partner 4'!$A21,takstblad,4,FALSE)*'Partner 4'!D21,"fejl i år"),0) -> 0 | M21: =+IFERROR(IF(M$12=Takstblad!E$3,VLOOKUP('Partner 4'!$A21,takstblad,5,FALSE)*'Partner 4'!E21,"fejl i år"),0) -> 0 | N21: =+IFERROR(IF(N$12=Takstblad!F$3,VLOOKUP('Partner 4'!$A21,takstblad,6,FALSE)*[1]Partner4!F21,"fejl i år"),0) -> 0 | O21: =+IFERROR(IF(O$12=Takstblad!G$3,VLOOKUP('Partner 4'!$A21,takstblad,7,FALSE)*'Partner 4'!G21,"fejl i år"),0) -> 0 | P21: 0
A22: "Choose job function" | H22: 0 | K22: =+IFERROR(IF(K$12=Takstblad!C$3,VLOOKUP('Partner 4'!$A22,takstblad,3,FALSE)*'Partner 4'!C22,"fejl i år"),0) -> 0 | L22: =+IFERROR(IF(L$12=Takstblad!D$3,VLOOKUP('Partner 4'!$A22,takstblad,4,FALSE)*'Partner 4'!D22,"fejl i år"),0) -> 0 | M22: =+IFERROR(IF(M$12=Takstblad!E$3,VLOOKUP('Partner 4'!$A22,takstblad,5,FALSE)*'Partner 4'!E22,"fejl i år"),0) -> 0 | N22: =+IFERROR(IF(N$12=Takstblad!F$3,VLOOKUP('Partner 4'!$A22,takstblad,6,FALSE)*'Partner 4'!F22,"fejl i år"),0) -> 0 | O22: =+IFERROR(IF(O$12=Takstblad!G$3,VLOOKUP('Partner 4'!$A22,takstblad,7,FALSE)*'Partner 4'!G22,"fejl i år"),0) -> 0 | P22: 0
A23: Total months | C23: =SUM(C13:C22) -> 0 | D23: 0 | E23: 0 | F23: 0 | G23: 0 | H23: =SUM(H13:H22) -> 0 | J23: Salary total | K23: =SUM(K13:K22) -> 0 | L23: =SUM(L13:L22) -> 0 | M23: 0 | N23: 0 | O23: 0 | P23: 0
C26: =+C12 -> 2023 | D26: =+D12 -> 2024 | E26: =+E12 -> 2025 | F26: =+F12 -> 2026 | G26: =+G12 -> 2027 | H26: Total
A27: Running costs (consumables etc.) | H27: =SUM(C27:G27) -> 0
A28: Travel costs | H28: =SUM(C28:G28) -> 0
A29: Accomodation | H29: =SUM(C29:G29) -> 0
A30: Equipment | H30: =SUM(C30:G30) -> 0
A31: Other | H31: =SUM(C31:G31) -> 0
A32: Operations Total | C32: =SUM(C27:C31)-C31 -> 0 | D32: =SUM(D27:D31)-D31 -> 0 | E32: =SUM(E27:E31)-E31 -> 0 | F32: =SUM(F27:F31)-F31 -> 0 | G32: =SUM(G27:G31)-G31 -> 0 | H32: =SUM(H27:H31) -> 0
B35: DKK | C35: =+C12 -> 2023 | D35: 2024 | E35: 2025 | F35: 2026 | G35: 2027 | H35: Total
A36: Salary | C36: =+K23 -> 0 | D36: =+L23 -> 0 | E36: =+M23 -> 0 | F36: =+N23 -> 0 | G36: =+O23 -> 0 | H36: =SUM(C36:G36) -> 0
A37: Running costs (consumables etc.) | C37: =+C27 -> 0 | D37: =+D27 -> 0 | E37: =+E27 -> 0 | F37: =+F27 -> 0 | G37: =+G27 -> 0 | H37: =SUM(C37:G37) -> 0
A38: Mobility/travel | C38: =+C28+C29 -> 0 | D38: =+D28+D29 -> 0 | E38: =+E28+E29 -> 0 | F38: =+F28+F29 -> 0 | G38: =+G28+G29 -> 0 | H38: =SUM(C38:G38) -> 0
A39: Equipment | C39: =+C30 -> 0 | D39: =+D30 -> 0 | E39: 0 | F39: 0 | G39: 0 | H39: =SUM(C39:G39) -> 0
A40: Other | C40: =+C31 -> 0 | D40: =+D31 -> 0 | E40: =+E31 -> 0 | F40: =+F31 -> 0 | G40: =+G31 -> 0 | H40: =SUM(C40:G40) -> 0
A41: Total | C41: =SUM(C36:C40) -> 0 | D41: =SUM(D36:D40) -> 0 | E41: 0 | F41: 0 | G41: 0 | H41: 0

Sheet Total
A1: Budgeting CellFood AUFF Flagship
A3: Institute:
A4: Projecttitle:
A5: Projectleader:
A6: Funder: | C6: AUFF
A12: Choose Categori and insert count of months | C12: =+Takstblad!C3 -> 2023 | D12: =+C12+1 -> 2024 | E12: =+D12+1 -> 2025 | F12: =+E12+1 -> 2026 | G12: =+F12+1 -> 2027 | H12: Total | I12: Comment | J12: Salary | K12: =+C12 -> 2023 | L12: =+D12 -> 2024 | M12: =+E12 -> 2025 | N12: =+F12 -> 2026 | O12: =+G12 -> 2027 | P12: Total
A13: Post doc. | B13: =+VLOOKUP(A13,Takstblad!$A$5:$B$18,2,FALSE) ->  | C13: =SUMIF('Partner 1'!$A$13:$A$22,$A13,'Partner 1'!C$13:C$22)+SUMIF('Partner 2'!$A$13:$A$22,$A13,'Partner 2'!C$13:C$22)+SUMIF('Partner 3'!$A$13:$A$22,$A13,'Partner 3'!C$13:C$22)+SUMIF('Partner 4'!$A$13:$A$22,$A13,'Partner 4'!C$13:C$22) -> 0 | D13: =SUMIF('Partner 1'!$A$13:$A$22,$A13,'Partner 1'!D$13:D$22)+SUMIF('Partner 2'!$A$13:$A$22,$A13,'Partner 2'!D$13:D$22)+SUMIF('Partner 3'!$A$13:$A$22,$A13,'Partner 3'!D$13:D$22)+SUMIF('Partner 4'!$A$13:$A$22,$A13,'Partner 4'!D$13:D$22) -> 0 | E13: =SUMIF('Partner 1'!$A$13:$A$22,$A13,'Partner 1'!E$13:E$22)+SUMIF('Partner 2'!$A$13:$A$22,$A13,'Partner 2'!E$13:E$22)+SUMIF('Partner 3'!$A$13:$A$22,$A13,'Partner 3'!E$13:E$22)+SUMIF('Partner 4'!$A$13:$A$22,$A13,'Partner 4'!E$13:E$22) -> 0 | F13: =SUMIF('Partner 1'!$A$13:$A$22,$A13,'Partner 1'!F$13:F$22)+SUMIF('Partner 2'!$A$13:$A$22,$A13,'Partner 2'!F$13:F$22)+SUMIF('Partner 3'!$A$13:$A$22,$A13,'Partner 3'!F$13:F$22)+SUMIF('Partner 4'!$A$13:$A$22,$A13,'Partner 4'!F$13:F$22) -> 0 | G13: =SUMIF('Partner 1'!$A$13:$A$22,$A13,'Partner 1'!G$13:G$22)+SUMIF('Partner 2'!$A$13:$A$22,$A13,'Partner 2'!G$13:G$22)+SUMIF('Partner 3'!$A$13:$A$22,$A13,'Partner 3'!G$13:G$22)+SUMIF('Partner 4'!$A$13:$A$22,$A13,'Partner 4'!G$13:G$22) -> 0 | H13: =SUM(C13:G13) -> 0 | K13: =SUMIF('Partner 1'!$A$13:$A$22,$A13,'Partner 1'!K$13:K$22)+SUMIF('Partner 2'!$A$13:$A$22,$A13,'Partner 2'!K$13:K$22)+SUMIF('Partner 3'!$A$13:$A$22,$A13,'Partner 3'!K$13:K$22)+SUMIF('Partner 4'!$A$13:$A$22,$A13,'Partner 4'!K$13:K$22) -> 0 | L13: =SUMIF('Partner 1'!$A$13:$A$22,$A13,'Partner 1'!L$13:L$22)+SUMIF('Partner 2'!$A$13:$A$22,$A13,'Partner 2'!L$13:L$22)+SUMIF('Partner 3'!$A$13:$A$22,$A13,'Partner 3'!L$13:L$22)+SUMIF('Partner 4'!$A$13:$A$22,$A13,'Partner 4'!L$13:L$22) -> 0 | M13: =SUMIF('Partner 1'!$A$13:$A$22,$A13,'Partner 1'!M$13:M$22)+SUMIF('Partner 2'!$A$13:$A$22,$A13,'Partner 2'!M$13:M$22)+SUMIF('Partner 3'!$A$13:$A$22,$A13,'Partner 3'!M$13:M$22)+SUMIF('Partner 4'!$A$13:$A$22,$A13,'Partner 4'!M$13:M$22) -> 0 | N13: =SUMIF('Partner 1'!$A$13:$A$22,$A13,'Partner 1'!N$13:N$22)+SUMIF('Partner 2'!$A$13:$A$22,$A13,'Partner 2'!N$13:N$22)+SUMIF('Partner 3'!$A$13:$A$22,$A13,'Partner 3'!N$13:N$22)+SUMIF('Partner 4'!$A$13:$A$22,$A13,'Partner 4'!N$13:N$22) -> 0 | O13: =SUMIF('Partner 1'!$A$13:$A$22,$A13,'Partner 1'!O$13:O$22)+SUMIF('Partner 2'!$A$13:$A$22,$A13,'Partner 2'!O$13:O$22)+SUMIF('Partner 3'!$A$13:$A$22,$A13,'Partner 3'!O$13:O$22)+SUMIF('Partner 4'!$A$13:$A$22,$A13,'Partner 4'!O$13:O$22) -> 0 | P13: =SUM(K13:O13) -> 0
A14: Research Assistent - avr. Rate | B14: =+VLOOKUP(A14,Takstblad!$A$5:$B$18,2,FALSE) ->  | C14: =SUMIF('Partner 1'!$A$13:$A$22,$A14,'Partner 1'!C$13:C$22)+SUMIF('Partner 2'!$A$13:$A$22,$A14,'Partner 2'!C$13:C$22)+SUMIF('Partner 3'!$A$13:$A$22,$A14,'Partner 3'!C$13:C$22)+SUMIF('Partner 4'!$A$13:$A$22,$A14,'Partner 4'!C$13:C$22) -> 0 | D14: =SUMIF('Partner 1'!$A$13:$A$22,$A14,'Partner 1'!D$13:D$22)+SUMIF('Partner 2'!$A$13:$A$22,$A14,'Partner 2'!D$13:D$22)+SUMIF('Partner 3'!$A$13:$A$22,$A14,'Partner 3'!D$13:D$22)+SUMIF('Partner 4'!$A$13:$A$22,$A14,'Partner 4'!D$13:D$22) -> 0 | E14: =SUMIF('Partner 1'!$A$13:$A$22,$A14,'Partner 1'!E$13:E$22)+SUMIF('Partner 2'!$A$13:$A$22,$A14,'Partner 2'!E$13:E$22)+SUMIF('Partner 3'!$A$13:$A$22,$A14,'Partner 3'!E$13:E$22)+SUMIF('Partner 4'!$A$13:$A$22,$A14,'Partner 4'!E$13:E$22) -> 0 | F14: =SUMIF('Partner 1'!$A$13:$A$22,$A14,'Partner 1'!F$13:F$22)+SUMIF('Partner 2'!$A$13:$A$22,$A14,'Partner 2'!F$13:F$22)+SUMIF('Partner 3'!$A$13:$A$22,$A14,'Partner 3'!F$13:F$22)+SUMIF('Partner 4'!$A$13:$A$22,$A14,'Partner 4'!F$13:F$22) -> 0 | G14: =SUMIF('Partner 1'!$A$13:$A$22,$A14,'Partner 1'!G$13:G$22)+SUMIF('Partner 2'!$A$13:$A$22,$A14,'Partner 2'!G$13:G$22)+SUMIF('Partner 3'!$A$13:$A$22,$A14,'Partner 3'!G$13:G$22)+SUMIF('Partner 4'!$A$13:$A$22,$A14,'Partner 4'!G$13:G$22) -> 0 | H14: 0 | K14: =SUMIF('Partner 1'!$A$13:$A$22,$A14,'Partner 1'!K$13:K$22)+SUMIF('Partner 2'!$A$13:$A$22,$A14,'Partner 2'!K$13:K$22)+SUMIF('Partner 3'!$A$13:$A$22,$A14,'Partner 3'!K$13:K$22)+SUMIF('Partner 4'!$A$13:$A$22,$A14,'Partner 4'!K$13:K$22) -> 0 | L14: =SUMIF('Partner 1'!$A$13:$A$22,$A14,'Partner 1'!L$13:L$22)+SUMIF('Partner 2'!$A$13:$A$22,$A14,'Partner 2'!L$13:L$22)+SUMIF('Partner 3'!$A$13:$A$22,$A14,'Partner 3'!L$13:L$22)+SUMIF('Partner 4'!$A$13:$A$22,$A14,'Partner 4'!L$13:L$22) -> 0 | M14: =SUMIF('Partner 1'!$A$13:$A$22,$A14,'Partner 1'!M$13:M$22)+SUMIF('Partner 2'!$A$13:$A$22,$A14,'Partner 2'!M$13:M$22)+SUMIF('Partner 3'!$A$13:$A$22,$A14,'Partner 3'!M$13:M$22)+SUMIF('Partner 4'!$A$13:$A$22,$A14,'Partner 4'!M$13:M$22) -> 0 | N14: =SUMIF('Partner 1'!$A$13:$A$22,$A14,'Partner 1'!N$13:N$22)+SUMIF('Partner 2'!$A$13:$A$22,$A14,'Partner 2'!N$13:N$22)+SUMIF('Partner 3'!$A$13:$A$22,$A14,'Partner 3'!N$13:N$22)+SUMIF('Partner 4'!$A$13:$A$22,$A14,'Partner 4'!N$13:N$22) -> 0 | O14: =SUMIF('Partner 1'!$A$13:$A$22,$A14,'Partner 1'!O$13:O$22)+SUMIF('Partner 2'!$A$13:$A$22,$A14,'Partner 2'!O$13:O$22)+SUMIF('Partner 3'!$A$13:$A$22,$A14,'Partner 3'!O$13:O$22)+SUMIF('Partner 4'!$A$13:$A$22,$A14,'Partner 4'!O$13:O$22) -> 0 | P14: 0
A15: Technician - avr. Rate | C15: =SUMIF('Partner 1'!$A$13:$A$22,$A15,'Partner 1'!C$13:C$22)+SUMIF('Partner 2'!$A$13:$A$22,$A15,'Partner 2'!C$13:C$22)+SUMIF('Partner 3'!$A$13:$A$22,$A15,'Partner 3'!C$13:C$22)+SUMIF('Partner 4'!$A$13:$A$22,$A15,'Partner 4'!C$13:C$22) -> 0 | D15: =SUMIF('Partner 1'!$A$13:$A$22,$A15,'Partner 1'!D$13:D$22)+SUMIF('Partner 2'!$A$13:$A$22,$A15,'Partner 2'!D$13:D$22)+SUMIF('Partner 3'!$A$13:$A$22,$A15,'Partner 3'!D$13:D$22)+SUMIF('Partner 4'!$A$13:$A$22,$A15,'Partner 4'!D$13:D$22) -> 0 | E15: =SUMIF('Partner 1'!$A$13:$A$22,$A15,'Partner 1'!E$13:E$22)+SUMIF('Partner 2'!$A$13:$A$22,$A15,'Partner 2'!E$13:E$22)+SUMIF('Partner 3'!$A$13:$A$22,$A15,'Partner 3'!E$13:E$22)+SUMIF('Partner 4'!$A$13:$A$22,$A15,'Partner 4'!E$13:E$22) -> 0 | F15: =SUMIF('Partner 1'!$A$13:$A$22,$A15,'Partner 1'!F$13:F$22)+SUMIF('Partner 2'!$A$13:$A$22,$A15,'Partner 2'!F$13:F$22)+SUMIF('Partner 3'!$A$13:$A$22,$A15,'Partner 3'!F$13:F$22)+SUMIF('Partner 4'!$A$13:$A$22,$A15,'Partner 4'!F$13:F$22) -> 0 | G15: =SUMIF('Partner 1'!$A$13:$A$22,$A15,'Partner 1'!G$13:G$22)+SUMIF('Partner 2'!$A$13:$A$22,$A15,'Partner 2'!G$13:G$22)+SUMIF('Partner 3'!$A$13:$A$22,$A15,'Partner 3'!G$13:G$22)+SUMIF('Partner 4'!$A$13:$A$22,$A15,'Partner 4'!G$13:G$22) -> 0 | H15: 0 | K15: =SUMIF('Partner 1'!$A$13:$A$22,$A15,'Partner 1'!K$13:K$22)+SUMIF('Partner 2'!$A$13:$A$22,$A15,'Partner 2'!K$13:K$22)+SUMIF('Partner 3'!$A$13:$A$22,$A15,'Partner 3'!K$13:K$22)+SUMIF('Partner 4'!$A$13:$A$22,$A15,'Partner 4'!K$13:K$22) -> 0 | L15: =SUMIF('Partner 1'!$A$13:$A$22,$A15,'Partner 1'!L$13:L$22)+SUMIF('Partner 2'!$A$13:$A$22,$A15,'Partner 2'!L$13:L$22)+SUMIF('Partner 3'!$A$13:$A$22,$A15,'Partner 3'!L$13:L$22)+SUMIF('Partner 4'!$A$13:$A$22,$A15,'Partner 4'!L$13:L$22) -> 0 | M15: =SUMIF('Partner 1'!$A$13:$A$22,$A15,'Partner 1'!M$13:M$22)+SUMIF('Partner 2'!$A$13:$A$22,$A15,'Partner 2'!M$13:M$22)+SUMIF('Partner 3'!$A$13:$A$22,$A15,'Partner 3'!M$13:M$22)+SUMIF('Partner 4'!$A$13:$A$22,$A15,'Partner 4'!M$13:M$22) -> 0 | N15: =SUMIF('Partner 1'!$A$13:$A$22,$A15,'Partner 1'!N$13:N$22)+SUMIF('Partner 2'!$A$13:$A$22,$A15,'Partner 2'!N$13:N$22)+SUMIF('Partner 3'!$A$13:$A$22,$A15,'Partner 3'!N$13:N$22)+SUMIF('Partner 4'!$A$13:$A$22,$A15,'Partner 4'!N$13:N$22) -> 0 | O15: =SUMIF('Partner 1'!$A$13:$A$22,$A15,'Partner 1'!O$13:O$22)+SUMIF('Partner 2'!$A$13:$A$22,$A15,'Partner 2'!O$13:O$22)+SUMIF('Partner 3'!$A$13:$A$22,$A15,'Partner 3'!O$13:O$22)+SUMIF('Partner 4'!$A$13:$A$22,$A15,'Partner 4'!O$13:O$22) -> 0 | P15: 0
A16: Student help | B16: =+VLOOKUP(A16,Takstblad!$A$5:$B$18,2,FALSE) ->  | C16: =SUMIF('Partner 1'!$A$13:$A$22,$A16,'Partner 1'!C$13:C$22)+SUMIF('Partner 2'!$A$13:$A$22,$A16,'Partner 2'!C$13:C$22)+SUMIF('Partner 3'!$A$13:$A$22,$A16,'Partner 3'!C$13:C$22)+SUMIF('Partner 4'!$A$13:$A$22,$A16,'Partner 4'!C$13:C$22) -> 0 | D16: =SUMIF('Partner 1'!$A$13:$A$22,$A16,'Partner 1'!D$13:D$22)+SUMIF('Partner 2'!$A$13:$A$22,$A16,'Partner 2'!D$13:D$22)+SUMIF('Partner 3'!$A$13:$A$22,$A16,'Partner 3'!D$13:D$22)+SUMIF('Partner 4'!$A$13:$A$22,$A16,'Partner 4'!D$13:D$22) -> 0 | E16: =SUMIF('Partner 1'!$A$13:$A$22,$A16,'Partner 1'!E$13:E$22)+SUMIF('Partner 2'!$A$13:$A$22,$A16,'Partner 2'!E$13:E$22)+SUMIF('Partner 3'!$A$13:$A$22,$A16,'Partner 3'!E$13:E$22)+SUMIF('Partner 4'!$A$13:$A$22,$A16,'Partner 4'!E$13:E$22) -> 0 | F16: =SUMIF('Partner 1'!$A$13:$A$22,$A16,'Partner 1'!F$13:F$22)+SUMIF('Partner 2'!$A$13:$A$22,$A16,'Partner 2'!F$13:F$22)+SUMIF('Partner 3'!$A$13:$A$22,$A16,'Partner 3'!F$13:F$22)+SUMIF('Partner 4'!$A$13:$A$22,$A16,'Partner 4'!F$13:F$22) -> 0 | G16: =SUMIF('Partner 1'!$A$13:$A$22,$A16,'Partner 1'!G$13:G$22)+SUMIF('Partner 2'!$A$13:$A$22,$A16,'Partner 2'!G$13:G$22)+SUMIF('Partner 3'!$A$13:$A$22,$A16,'Partner 3'!G$13:G$22)+SUMIF('Partner 4'!$A$13:$A$22,$A16,'Partner 4'!G$13:G$22) -> 0 | H16: 0 | K16: =SUMIF('Partner 1'!$A$13:$A$22,$A16,'Partner 1'!K$13:K$22)+SUMIF('Partner 2'!$A$13:$A$22,$A16,'Partner 2'!K$13:K$22)+SUMIF('Partner 3'!$A$13:$A$22,$A16,'Partner 3'!K$13:K$22)+SUMIF('Partner 4'!$A$13:$A$22,$A16,'Partner 4'!K$13:K$22) -> 0 | L16: =SUMIF('Partner 1'!$A$13:$A$22,$A16,'Partner 1'!L$13:L$22)+SUMIF('Partner 2'!$A$13:$A$22,$A16,'Partner 2'!L$13:L$22)+SUMIF('Partner 3'!$A$13:$A$22,$A16,'Partner 3'!L$13:L$22)+SUMIF('Partner 4'!$A$13:$A$22,$A16,'Partner 4'!L$13:L$22) -> 0 | M16: =SUMIF('Partner 1'!$A$13:$A$22,$A16,'Partner 1'!M$13:M$22)+SUMIF('Partner 2'!$A$13:$A$22,$A16,'Partner 2'!M$13:M$22)+SUMIF('Partner 3'!$A$13:$A$22,$A16,'Partner 3'!M$13:M$22)+SUMIF('Partner 4'!$A$13:$A$22,$A16,'Partner 4'!M$13:M$22) -> 0 | N16: =SUMIF('Partner 1'!$A$13:$A$22,$A16,'Partner 1'!N$13:N$22)+SUMIF('Partner 2'!$A$13:$A$22,$A16,'Partner 2'!N$13:N$22)+SUMIF('Partner 3'!$A$13:$A$22,$A16,'Partner 3'!N$13:N$22)+SUMIF('Partner 4'!$A$13:$A$22,$A16,'Partner 4'!N$13:N$22) -> 0 | O16: =SUMIF('Partner 1'!$A$13:$A$22,$A16,'Partner 1'!O$13:O$22)+SUMIF('Partner 2'!$A$13:$A$22,$A16,'Partner 2'!O$13:O$22)+SUMIF('Partner 3'!$A$13:$A$22,$A16,'Partner 3'!O$13:O$22)+SUMIF('Partner 4'!$A$13:$A$22,$A16,'Partner 4'!O$13:O$22) -> 0 | P16: 0
A17: "Choose job function" | B17: =+VLOOKUP(A17,Takstblad!$A$5:$B$18,2,FALSE) ->  | C17: =SUMIF('Partner 1'!$A$13:$A$22,$A17,'Partner 1'!C$13:C$22)+SUMIF('Partner 2'!$A$13:$A$22,$A17,'Partner 2'!C$13:C$22)+SUMIF('Partner 3'!$A$13:$A$22,$A17,'Partner 3'!C$13:C$22)+SUMIF('Partner 4'!$A$13:$A$22,$A17,'Partner 4'!C$13:C$22) -> 0 | D17: =SUMIF('Partner 1'!$A$13:$A$22,$A17,'Partner 1'!D$13:D$22)+SUMIF('Partner 2'!$A$13:$A$22,$A17,'Partner 2'!D$13:D$22)+SUMIF('Partner 3'!$A$13:$A$22,$A17,'Partner 3'!D$13:D$22)+SUMIF('Partner 4'!$A$13:$A$22,$A17,'Partner 4'!D$13:D$22) -> 0 | E17: =SUMIF('Partner 1'!$A$13:$A$22,$A17,'Partner 1'!E$13:E$22)+SUMIF('Partner 2'!$A$13:$A$22,$A17,'Partner 2'!E$13:E$22)+SUMIF('Partner 3'!$A$13:$A$22,$A17,'Partner 3'!E$13:E$22)+SUMIF('Partner 4'!$A$13:$A$22,$A17,'Partner 4'!E$13:E$22) -> 0 | F17: =SUMIF('Partner 1'!$A$13:$A$22,$A17,'Partner 1'!F$13:F$22)+SUMIF('Partner 2'!$A$13:$A$22,$A17,'Partner 2'!F$13:F$22)+SUMIF('Partner 3'!$A$13:$A$22,$A17,'Partner 3'!F$13:F$22)+SUMIF('Partner 4'!$A$13:$A$22,$A17,'Partner 4'!F$13:F$22) -> 0 | G17: =SUMIF('Partner 1'!$A$13:$A$22,$A17,'Partner 1'!G$13:G$22)+SUMIF('Partner 2'!$A$13:$A$22,$A17,'Partner 2'!G$13:G$22)+SUMIF('Partner 3'!$A$13:$A$22,$A17,'Partner 3'!G$13:G$22)+SUMIF('Partner 4'!$A$13:$A$22,$A17,'Partner 4'!G$13:G$22) -> 0 | H17: 0 | K17: =SUMIF('Partner 1'!$A$13:$A$22,$A17,'Partner 1'!K$13:K$22)+SUMIF('Partner 2'!$A$13:$A$22,$A17,'Partner 2'!K$13:K$22)+SUMIF('Partner 3'!$A$13:$A$22,$A17,'Partner 3'!K$13:K$22)+SUMIF('Partner 4'!$A$13:$A$22,$A17,'Partner 4'!K$13:K$22) -> 0 | L17: =SUMIF('Partner 1'!$A$13:$A$22,$A17,'Partner 1'!L$13:L$22)+SUMIF('Partner 2'!$A$13:$A$22,$A17,'Partner 2'!L$13:L$22)+SUMIF('Partner 3'!$A$13:$A$22,$A17,'Partner 3'!L$13:L$22)+SUMIF('Partner 4'!$A$13:$A$22,$A17,'Partner 4'!L$13:L$22) -> 0 | M17: =SUMIF('Partner 1'!$A$13:$A$22,$A17,'Partner 1'!M$13:M$22)+SUMIF('Partner 2'!$A$13:$A$22,$A17,'Partner 2'!M$13:M$22)+SUMIF('Partner 3'!$A$13:$A$22,$A17,'Partner 3'!M$13:M$22)+SUMIF('Partner 4'!$A$13:$A$22,$A17,'Partner 4'!M$13:M$22) -> 0 | N17: =SUMIF('Partner 1'!$A$13:$A$22,$A17,'Partner 1'!N$13:N$22)+SUMIF('Partner 2'!$A$13:$A$22,$A17,'Partner 2'!N$13:N$22)+SUMIF('Partner 3'!$A$13:$A$22,$A17,'Partner 3'!N$13:N$22)+SUMIF('Partner 4'!$A$13:$A$22,$A17,'Partner 4'!N$13:N$22) -> 0 | O17: =SUMIF('Partner 1'!$A$13:$A$22,$A17,'Partner 1'!O$13:O$22)+SUMIF('Partner 2'!$A$13:$A$22,$A17,'Partner 2'!O$13:O$22)+SUMIF('Partner 3'!$A$13:$A$22,$A17,'Partner 3'!O$13:O$22)+SUMIF('Partner 4'!$A$13:$A$22,$A17,'Partner 4'!O$13:O$22) -> 0 | P17: 0
A18: "Choose job function" | B18: =+VLOOKUP(A18,Takstblad!$A$5:$B$18,2,FALSE) ->  | C18: =SUMIF('Partner 1'!$A$13:$A$22,$A18,'Partner 1'!C$13:C$22)+SUMIF('Partner 2'!$A$13:$A$22,$A18,'Partner 2'!C$13:C$22)+SUMIF('Partner 3'!$A$13:$A$22,$A18,'Partner 3'!C$13:C$22)+SUMIF('Partner 4'!$A$13:$A$22,$A18,'Partner 4'!C$13:C$22) -> 0 | D18: =SUMIF('Partner 1'!$A$13:$A$22,$A18,'Partner 1'!D$13:D$22)+SUMIF('Partner 2'!$A$13:$A$22,$A18,'Partner 2'!D$13:D$22)+SUMIF('Partner 3'!$A$13:$A$22,$A18,'Partner 3'!D$13:D$22)+SUMIF('Partner 4'!$A$13:$A$22,$A18,'Partner 4'!D$13:D$22) -> 0 | E18: =SUMIF('Partner 1'!$A$13:$A$22,$A18,'Partner 1'!E$13:E$22)+SUMIF('Partner 2'!$A$13:$A$22,$A18,'Partner 2'!E$13:E$22)+SUMIF('Partner 3'!$A$13:$A$22,$A18,'Partner 3'!E$13:E$22)+SUMIF('Partner 4'!$A$13:$A$22,$A18,'Partner 4'!E$13:E$22) -> 0 | F18: =SUMIF('Partner 1'!$A$13:$A$22,$A18,'Partner 1'!F$13:F$22)+SUMIF('Partner 2'!$A$13:$A$22,$A18,'Partner 2'!F$13:F$22)+SUMIF('Partner 3'!$A$13:$A$22,$A18,'Partner 3'!F$13:F$22)+SUMIF('Partner 4'!$A$13:$A$22,$A18,'Partner 4'!F$13:F$22) -> 0 | G18: =SUMIF('Partner 1'!$A$13:$A$22,$A18,'Partner 1'!G$13:G$22)+SUMIF('Partner 2'!$A$13:$A$22,$A18,'Partner 2'!G$13:G$22)+SUMIF('Partner 3'!$A$13:$A$22,$A18,'Partner 3'!G$13:G$22)+SUMIF('Partner 4'!$A$13:$A$22,$A18,'Partner 4'!G$13:G$22) -> 0 | H18: 0 | K18: =SUMIF('Partner 1'!$A$13:$A$22,$A18,'Partner 1'!K$13:K$22)+SUMIF('Partner 2'!$A$13:$A$22,$A18,'Partner 2'!K$13:K$22)+SUMIF('Partner 3'!$A$13:$A$22,$A18,'Partner 3'!K$13:K$22)+SUMIF('Partner 4'!$A$13:$A$22,$A18,'Partner 4'!K$13:K$22) -> 0 | L18: =SUMIF('Partner 1'!$A$13:$A$22,$A18,'Partner 1'!L$13:L$22)+SUMIF('Partner 2'!$A$13:$A$22,$A18,'Partner 2'!L$13:L$22)+SUMIF('Partner 3'!$A$13:$A$22,$A18,'Partner 3'!L$13:L$22)+SUMIF('Partner 4'!$A$13:$A$22,$A18,'Partner 4'!L$13:L$22) -> 0 | M18: =SUMIF('Partner 1'!$A$13:$A$22,$A18,'Partner 1'!M$13:M$22)+SUMIF('Partner 2'!$A$13:$A$22,$A18,'Partner 2'!M$13:M$22)+SUMIF('Partner 3'!$A$13:$A$22,$A18,'Partner 3'!M$13:M$22)+SUMIF('Partner 4'!$A$13:$A$22,$A18,'Partner 4'!M$13:M$22) -> 0 | N18: =SUMIF('Partner 1'!$A$13:$A$22,$A18,'Partner 1'!N$13:N$22)+SUMIF('Partner 2'!$A$13:$A$22,$A18,'Partner 2'!N$13:N$22)+SUMIF('Partner 3'!$A$13:$A$22,$A18,'Partner 3'!N$13:N$22)+SUMIF('Partner 4'!$A$13:$A$22,$A18,'Partner 4'!N$13:N$22) -> 0 | O18: =SUMIF('Partner 1'!$A$13:$A$22,$A18,'Partner 1'!O$13:O$22)+SUMIF('Partner 2'!$A$13:$A$22,$A18,'Partner 2'!O$13:O$22)+SUMIF('Partner 3'!$A$13:$A$22,$A18,'Partner 3'!O$13:O$22)+SUMIF('Partner 4'!$A$13:$A$22,$A18,'Partner 4'!O$13:O$22) -> 0 | P18: 0
A19: "Choose job function" | B19: =+VLOOKUP(A19,Takstblad!$A$5:$B$18,2,FALSE) ->  | C19: =SUMIF('Partner 1'!$A$13:$A$22,$A19,'Partner 1'!C$13:C$22)+SUMIF('Partner 2'!$A$13:$A$22,$A19,'Partner 2'!C$13:C$22)+SUMIF('Partner 3'!$A$13:$A$22,$A19,'Partner 3'!C$13:C$22)+SUMIF('Partner 4'!$A$13:$A$22,$A19,'Partner 4'!C$13:C$22) -> 0 | D19: =SUMIF('Partner 1'!$A$13:$A$22,$A19,'Partner 1'!D$13:D$22)+SUMIF('Partner 2'!$A$13:$A$22,$A19,'Partner 2'!D$13:D$22)+SUMIF('Partner 3'!$A$13:$A$22,$A19,'Partner 3'!D$13:D$22)+SUMIF('Partner 4'!$A$13:$A$22,$A19,'Partner 4'!D$13:D$22) -> 0 | E19: =SUMIF('Partner 1'!$A$13:$A$22,$A19,'Partner 1'!E$13:E$22)+SUMIF('Partner 2'!$A$13:$A$22,$A19,'Partner 2'!E$13:E$22)+SUMIF('Partner 3'!$A$13:$A$22,$A19,'Partner 3'!E$13:E$22)+SUMIF('Partner 4'!$A$13:$A$22,$A19,'Partner 4'!E$13:E$22) -> 0 | F19: =SUMIF('Partner 1'!$A$13:$A$22,$A19,'Partner 1'!F$13:F$22)+SUMIF('Partner 2'!$A$13:$A$22,$A19,'Partner 2'!F$13:F$22)+SUMIF('Partner 3'!$A$13:$A$22,$A19,'Partner 3'!F$13:F$22)+SUMIF('Partner 4'!$A$13:$A$22,$A19,'Partner 4'!F$13:F$22) -> 0 | G19: =SUMIF('Partner 1'!$A$13:$A$22,$A19,'Partner 1'!G$13:G$22)+SUMIF('Partner 2'!$A$13:$A$22,$A19,'Partner 2'!G$13:G$22)+SUMIF('Partner 3'!$A$13:$A$22,$A19,'Partner 3'!G$13:G$22)+SUMIF('Partner 4'!$A$13:$A$22,$A19,'Partner 4'!G$13:G$22) -> 0 | H19: 0 | K19: =SUMIF('Partner 1'!$A$13:$A$22,$A19,'Partner 1'!K$13:K$22)+SUMIF('Partner 2'!$A$13:$A$22,$A19,'Partner 2'!K$13:K$22)+SUMIF('Partner 3'!$A$13:$A$22,$A19,'Partner 3'!K$13:K$22)+SUMIF('Partner 4'!$A$13:$A$22,$A19,'Partner 4'!K$13:K$22) -> 0 | L19: =SUMIF('Partner 1'!$A$13:$A$22,$A19,'Partner 1'!L$13:L$22)+SUMIF('Partner 2'!$A$13:$A$22,$A19,'Partner 2'!L$13:L$22)+SUMIF('Partner 3'!$A$13:$A$22,$A19,'Partner 3'!L$13:L$22)+SUMIF('Partner 4'!$A$13:$A$22,$A19,'Partner 4'!L$13:L$22) -> 0 | M19: =SUMIF('Partner 1'!$A$13:$A$22,$A19,'Partner 1'!M$13:M$22)+SUMIF('Partner 2'!$A$13:$A$22,$A19,'Partner 2'!M$13:M$22)+SUMIF('Partner 3'!$A$13:$A$22,$A19,'Partner 3'!M$13:M$22)+SUMIF('Partner 4'!$A$13:$A$22,$A19,'Partner 4'!M$13:M$22) -> 0 | N19: =SUMIF('Partner 1'!$A$13:$A$22,$A19,'Partner 1'!N$13:N$22)+SUMIF('Partner 2'!$A$13:$A$22,$A19,'Partner 2'!N$13:N$22)+SUMIF('Partner 3'!$A$13:$A$22,$A19,'Partner 3'!N$13:N$22)+SUMIF('Partner 4'!$A$13:$A$22,$A19,'Partner 4'!N$13:N$22) -> 0 | O19: =SUMIF('Partner 1'!$A$13:$A$22,$A19,'Partner 1'!O$13:O$22)+SUMIF('Partner 2'!$A$13:$A$22,$A19,'Partner 2'!O$13:O$22)+SUMIF('Partner 3'!$A$13:$A$22,$A19,'Partner 3'!O$13:O$22)+SUMIF('Partner 4'!$A$13:$A$22,$A19,'Partner 4'!O$13:O$22) -> 0 | P19: 0
A20: "Choose job function" | B20: =+VLOOKUP(A20,Takstblad!$A$5:$B$18,2,FALSE) ->  | C20: =SUMIF('Partner 1'!$A$13:$A$22,$A20,'Partner 1'!C$13:C$22)+SUMIF('Partner 2'!$A$13:$A$22,$A20,'Partner 2'!C$13:C$22)+SUMIF('Partner 3'!$A$13:$A$22,$A20,'Partner 3'!C$13:C$22)+SUMIF('Partner 4'!$A$13:$A$22,$A20,'Partner 4'!C$13:C$22) -> 0 | D20: =SUMIF('Partner 1'!$A$13:$A$22,$A20,'Partner 1'!D$13:D$22)+SUMIF('Partner 2'!$A$13:$A$22,$A20,'Partner 2'!D$13:D$22)+SUMIF('Partner 3'!$A$13:$A$22,$A20,'Partner 3'!D$13:D$22)+SUMIF('Partner 4'!$A$13:$A$22,$A20,'Partner 4'!D$13:D$22) -> 0 | E20: =SUMIF('Partner 1'!$A$13:$A$22,$A20,'Partner 1'!E$13:E$22)+SUMIF('Partner 2'!$A$13:$A$22,$A20,'Partner 2'!E$13:E$22)+SUMIF('Partner 3'!$A$13:$A$22,$A20,'Partner 3'!E$13:E$22)+SUMIF('Partner 4'!$A$13:$A$22,$A20,'Partner 4'!E$13:E$22) -> 0 | F20: =SUMIF('Partner 1'!$A$13:$A$22,$A20,'Partner 1'!F$13:F$22)+SUMIF('Partner 2'!$A$13:$A$22,$A20,'Partner 2'!F$13:F$22)+SUMIF('Partner 3'!$A$13:$A$22,$A20,'Partner 3'!F$13:F$22)+SUMIF('Partner 4'!$A$13:$A$22,$A20,'Partner 4'!F$13:F$22) -> 0 | G20: =SUMIF('Partner 1'!$A$13:$A$22,$A20,'Partner 1'!G$13:G$22)+SUMIF('Partner 2'!$A$13:$A$22,$A20,'Partner 2'!G$13:G$22)+SUMIF('Partner 3'!$A$13:$A$22,$A20,'Partner 3'!G$13:G$22)+SUMIF('Partner 4'!$A$13:$A$22,$A20,'Partner 4'!G$13:G$22) -> 0 | H20: 0 | K20: =SUMIF('Partner 1'!$A$13:$A$22,$A20,'Partner 1'!K$13:K$22)+SUMIF('Partner 2'!$A$13:$A$22,$A20,'Partner 2'!K$13:K$22)+SUMIF('Partner 3'!$A$13:$A$22,$A20,'Partner 3'!K$13:K$22)+SUMIF('Partner 4'!$A$13:$A$22,$A20,'Partner 4'!K$13:K$22) -> 0 | L20: =SUMIF('Partner 1'!$A$13:$A$22,$A20,'Partner 1'!L$13:L$22)+SUMIF('Partner 2'!$A$13:$A$22,$A20,'Partner 2'!L$13:L$22)+SUMIF('Partner 3'!$A$13:$A$22,$A20,'Partner 3'!L$13:L$22)+SUMIF('Partner 4'!$A$13:$A$22,$A20,'Partner 4'!L$13:L$22) -> 0 | M20: =SUMIF('Partner 1'!$A$13:$A$22,$A20,'Partner 1'!M$13:M$22)+SUMIF('Partner 2'!$A$13:$A$22,$A20,'Partner 2'!M$13:M$22)+SUMIF('Partner 3'!$A$13:$A$22,$A20,'Partner 3'!M$13:M$22)+SUMIF('Partner 4'!$A$13:$A$22,$A20,'Partner 4'!M$13:M$22) -> 0 | N20: =SUMIF('Partner 1'!$A$13:$A$22,$A20,'Partner 1'!N$13:N$22)+SUMIF('Partner 2'!$A$13:$A$22,$A20,'Partner 2'!N$13:N$22)+SUMIF('Partner 3'!$A$13:$A$22,$A20,'Partner 3'!N$13:N$22)+SUMIF('Partner 4'!$A$13:$A$22,$A20,'Partner 4'!N$13:N$22) -> 0 | O20: =SUMIF('Partner 1'!$A$13:$A$22,$A20,'Partner 1'!O$13:O$22)+SUMIF('Partner 2'!$A$13:$A$22,$A20,'Partner 2'!O$13:O$22)+SUMIF('Partner 3'!$A$13:$A$22,$A20,'Partner 3'!O$13:O$22)+SUMIF('Partner 4'!$A$13:$A$22,$A20,'Partner 4'!O$13:O$22) -> 0 | P20: 0
A21: "Choose job function" | B21: =+VLOOKUP(A21,Takstblad!$A$5:$B$18,2,FALSE) ->  | C21: =SUMIF('Partner 1'!$A$13:$A$22,$A21,'Partner 1'!C$13:C$22)+SUMIF('Partner 2'!$A$13:$A$22,$A21,'Partner 2'!C$13:C$22)+SUMIF('Partner 3'!$A$13:$A$22,$A21,'Partner 3'!C$13:C$22)+SUMIF('Partner 4'!$A$13:$A$22,$A21,'Partner 4'!C$13:C$22) -> 0 | D21: =SUMIF('Partner 1'!$A$13:$A$22,$A21,'Partner 1'!D$13:D$22)+SUMIF('Partner 2'!$A$13:$A$22,$A21,'Partner 2'!D$13:D$22)+SUMIF('Partner 3'!$A$13:$A$22,$A21,'Partner 3'!D$13:D$22)+SUMIF('Partner 4'!$A$13:$A$22,$A21,'Partner 4'!D$13:D$22) -> 0 | E21: =SUMIF('Partner 1'!$A$13:$A$22,$A21,'Partner 1'!E$13:E$22)+SUMIF('Partner 2'!$A$13:$A$22,$A21,'Partner 2'!E$13:E$22)+SUMIF('Partner 3'!$A$13:$A$22,$A21,'Partner 3'!E$13:E$22)+SUMIF('Partner 4'!$A$13:$A$22,$A21,'Partner 4'!E$13:E$22) -> 0 | F21: =SUMIF('Partner 1'!$A$13:$A$22,$A21,'Partner 1'!F$13:F$22)+SUMIF('Partner 2'!$A$13:$A$22,$A21,'Partner 2'!F$13:F$22)+SUMIF('Partner 3'!$A$13:$A$22,$A21,'Partner 3'!F$13:F$22)+SUMIF('Partner 4'!$A$13:$A$22,$A21,'Partner 4'!F$13:F$22) -> 0 | G21: =SUMIF('Partner 1'!$A$13:$A$22,$A21,'Partner 1'!G$13:G$22)+SUMIF('Partner 2'!$A$13:$A$22,$A21,'Partner 2'!G$13:G$22)+SUMIF('Partner 3'!$A$13:$A$22,$A21,'Partner 3'!G$13:G$22)+SUMIF('Partner 4'!$A$13:$A$22,$A21,'Partner 4'!G$13:G$22) -> 0 | H21: 0 | K21: =SUMIF('Partner 1'!$A$13:$A$22,$A21,'Partner 1'!K$13:K$22)+SUMIF('Partner 2'!$A$13:$A$22,$A21,'Partner 2'!K$13:K$22)+SUMIF('Partner 3'!$A$13:$A$22,$A21,'Partner 3'!K$13:K$22)+SUMIF('Partner 4'!$A$13:$A$22,$A21,'Partner 4'!K$13:K$22) -> 0 | L21: =SUMIF('Partner 1'!$A$13:$A$22,$A21,'Partner 1'!L$13:L$22)+SUMIF('Partner 2'!$A$13:$A$22,$A21,'Partner 2'!L$13:L$22)+SUMIF('Partner 3'!$A$13:$A$22,$A21,'Partner 3'!L$13:L$22)+SUMIF('Partner 4'!$A$13:$A$22,$A21,'Partner 4'!L$13:L$22) -> 0 | M21: =SUMIF('Partner 1'!$A$13:$A$22,$A21,'Partner 1'!M$13:M$22)+SUMIF('Partner 2'!$A$13:$A$22,$A21,'Partner 2'!M$13:M$22)+SUMIF('Partner 3'!$A$13:$A$22,$A21,'Partner 3'!M$13:M$22)+SUMIF('Partner 4'!$A$13:$A$22,$A21,'Partner 4'!M$13:M$22) -> 0 | N21: =SUMIF('Partner 1'!$A$13:$A$22,$A21,'Partner 1'!N$13:N$22)+SUMIF('Partner 2'!$A$13:$A$22,$A21,'Partner 2'!N$13:N$22)+SUMIF('Partner 3'!$A$13:$A$22,$A21,'Partner 3'!N$13:N$22)+SUMIF('Partner 4'!$A$13:$A$22,$A21,'Partner 4'!N$13:N$22) -> 0 | O21: =SUMIF('Partner 1'!$A$13:$A$22,$A21,'Partner 1'!O$13:O$22)+SUMIF('Partner 2'!$A$13:$A$22,$A21,'Partner 2'!O$13:O$22)+SUMIF('Partner 3'!$A$13:$A$22,$A21,'Partner 3'!O$13:O$22)+SUMIF('Partner 4'!$A$13:$A$22,$A21,'Partner 4'!O$13:O$22) -> 0 | P21: 0
A22: "Choose job function" | B22: =+VLOOKUP(A22,Takstblad!$A$5:$B$18,2,FALSE) ->  | C22: =SUMIF('Partner 1'!$A$13:$A$22,$A22,'Partner 1'!C$13:C$22)+SUMIF('Partner 2'!$A$13:$A$22,$A22,'Partner 2'!C$13:C$22)+SUMIF('Partner 3'!$A$13:$A$22,$A22,'Partner 3'!C$13:C$22)+SUMIF('Partner 4'!$A$13:$A$22,$A22,'Partner 4'!C$13:C$22) -> 0 | D22: =SUMIF('Partner 1'!$A$13:$A$22,$A22,'Partner 1'!D$13:D$22)+SUMIF('Partner 2'!$A$13:$A$22,$A22,'Partner 2'!D$13:D$22)+SUMIF('Partner 3'!$A$13:$A$22,$A22,'Partner 3'!D$13:D$22)+SUMIF('Partner 4'!$A$13:$A$22,$A22,'Partner 4'!D$13:D$22) -> 0 | E22: =SUMIF('Partner 1'!$A$13:$A$22,$A22,'Partner 1'!E$13:E$22)+SUMIF('Partner 2'!$A$13:$A$22,$A22,'Partner 2'!E$13:E$22)+SUMIF('Partner 3'!$A$13:$A$22,$A22,'Partner 3'!E$13:E$22)+SUMIF('Partner 4'!$A$13:$A$22,$A22,'Partner 4'!E$13:E$22) -> 0 | F22: =SUMIF('Partner 1'!$A$13:$A$22,$A22,'Partner 1'!F$13:F$22)+SUMIF('Partner 2'!$A$13:$A$22,$A22,'Partner 2'!F$13:F$22)+SUMIF('Partner 3'!$A$13:$A$22,$A22,'Partner 3'!F$13:F$22)+SUMIF('Partner 4'!$A$13:$A$22,$A22,'Partner 4'!F$13:F$22) -> 0 | G22: =SUMIF('Partner 1'!$A$13:$A$22,$A22,'Partner 1'!G$13:G$22)+SUMIF('Partner 2'!$A$13:$A$22,$A22,'Partner 2'!G$13:G$22)+SUMIF('Partner 3'!$A$13:$A$22,$A22,'Partner 3'!G$13:G$22)+SUMIF('Partner 4'!$A$13:$A$22,$A22,'Partner 4'!G$13:G$22) -> 0 | H22: 0 | K22: =SUMIF('Partner 1'!$A$13:$A$22,$A22,'Partner 1'!K$13:K$22)+SUMIF('Partner 2'!$A$13:$A$22,$A22,'Partner 2'!K$13:K$22)+SUMIF('Partner 3'!$A$13:$A$22,$A22,'Partner 3'!K$13:K$22)+SUMIF('Partner 4'!$A$13:$A$22,$A22,'Partner 4'!K$13:K$22) -> 0 | L22: =SUMIF('Partner 1'!$A$13:$A$22,$A22,'Partner 1'!L$13:L$22)+SUMIF('Partner 2'!$A$13:$A$22,$A22,'Partner 2'!L$13:L$22)+SUMIF('Partner 3'!$A$13:$A$22,$A22,'Partner 3'!L$13:L$22)+SUMIF('Partner 4'!$A$13:$A$22,$A22,'Partner 4'!L$13:L$22) -> 0 | M22: =SUMIF('Partner 1'!$A$13:$A$22,$A22,'Partner 1'!M$13:M$22)+SUMIF('Partner 2'!$A$13:$A$22,$A22,'Partner 2'!M$13:M$22)+SUMIF('Partner 3'!$A$13:$A$22,$A22,'Partner 3'!M$13:M$22)+SUMIF('Partner 4'!$A$13:$A$22,$A22,'Partner 4'!M$13:M$22) -> 0 | N22: =SUMIF('Partner 1'!$A$13:$A$22,$A22,'Partner 1'!N$13:N$22)+SUMIF('Partner 2'!$A$13:$A$22,$A22,'Partner 2'!N$13:N$22)+SUMIF('Partner 3'!$A$13:$A$22,$A22,'Partner 3'!N$13:N$22)+SUMIF('Partner 4'!$A$13:$A$22,$A22,'Partner 4'!N$13:N$22) -> 0 | O22: =SUMIF('Partner 1'!$A$13:$A$22,$A22,'Partner 1'!O$13:O$22)+SUMIF('Partner 2'!$A$13:$A$22,$A22,'Partner 2'!O$13:O$22)+SUMIF('Partner 3'!$A$13:$A$22,$A22,'Partner 3'!O$13:O$22)+SUMIF('Partner 4'!$A$13:$A$22,$A22,'Partner 4'!O$13:O$22) -> 0 | P22: 0
A23: Total months | C23: =SUM(C13:C22) -> 0 | D23: 0 | E23: 0 | F23: 0 | G23: 0 | H23: =SUM(H13:H22) -> 0 | J23: Salary total | K23: =SUM(K13:K22) -> 0 | L23: =SUM(L13:L22) -> 0 | M23: 0 | N23: 0 | O23: 0 | P23: 0
C26: =+C12 -> 2023 | D26: =+D12 -> 2024 | E26: =+E12 -> 2025 | F26: =+F12 -> 2026 | G26: =+G12 -> 2027 | H26: Total
A27: Running costs (consumables etc.) | C27: =SUMIF('Partner 1'!$A$27:$A$32,$A27,'Partner 1'!C$27:C$32)+SUMIF('Partner 2'!$A$27:$A$32,$A27,'Partner 2'!C$27:C$32)+SUMIF('Partner 3'!$A$27:$A$32,$A27,'Partner 3'!C$27:C$32)+SUMIF('Partner 4'!$A$27:$A$32,$A27,'Partner 4'!C$27:C$32) -> 0 | D27: =SUMIF('Partner 1'!$A$27:$A$32,$A27,'Partner 1'!D$27:D$32)+SUMIF('Partner 2'!$A$27:$A$32,$A27,'Partner 2'!D$27:D$32)+SUMIF('Partner 3'!$A$27:$A$32,$A27,'Partner 3'!D$27:D$32)+SUMIF('Partner 4'!$A$27:$A$32,$A27,'Partner 4'!D$27:D$32) -> 0 | E27: =SUMIF('Partner 1'!$A$27:$A$32,$A27,'Partner 1'!E$27:E$32)+SUMIF('Partner 2'!$A$27:$A$32,$A27,'Partner 2'!E$27:E$32)+SUMIF('Partner 3'!$A$27:$A$32,$A27,'Partner 3'!E$27:E$32)+SUMIF('Partner 4'!$A$27:$A$32,$A27,'Partner 4'!E$27:E$32) -> 0 | F27: =SUMIF('Partner 1'!$A$27:$A$32,$A27,'Partner 1'!F$27:F$32)+SUMIF('Partner 2'!$A$27:$A$32,$A27,'Partner 2'!F$27:F$32)+SUMIF('Partner 3'!$A$27:$A$32,$A27,'Partner 3'!F$27:F$32)+SUMIF('Partner 4'!$A$27:$A$32,$A27,'Partner 4'!F$27:F$32) -> 0 | G27: =SUMIF('Partner 1'!$A$27:$A$32,$A27,'Partner 1'!G$27:G$32)+SUMIF('Partner 2'!$A$27:$A$32,$A27,'Partner 2'!G$27:G$32)+SUMIF('Partner 3'!$A$27:$A$32,$A27,'Partner 3'!G$27:G$32)+SUMIF('Partner 4'!$A$27:$A$32,$A27,'Partner 4'!G$27:G$32) -> 0 | H27: =SUM(C27:G27) -> 0
A28: Travel costs | C28: =SUMIF('Partner 1'!$A$27:$A$32,$A28,'Partner 1'!C$27:C$32)+SUMIF('Partner 2'!$A$27:$A$32,$A28,'Partner 2'!C$27:C$32)+SUMIF('Partner 3'!$A$27:$A$32,$A28,'Partner 3'!C$27:C$32)+SUMIF('Partner 4'!$A$27:$A$32,$A28,'Partner 4'!C$27:C$32) -> 0 | D28: =SUMIF('Partner 1'!$A$27:$A$32,$A28,'Partner 1'!D$27:D$32)+SUMIF('Partner 2'!$A$27:$A$32,$A28,'Partner 2'!D$27:D$32)+SUMIF('Partner 3'!$A$27:$A$32,$A28,'Partner 3'!D$27:D$32)+SUMIF('Partner 4'!$A$27:$A$32,$A28,'Partner 4'!D$27:D$32) -> 0 | E28: =SUMIF('Partner 1'!$A$27:$A$32,$A28,'Partner 1'!E$27:E$32)+SUMIF('Partner 2'!$A$27:$A$32,$A28,'Partner 2'!E$27:E$32)+SUMIF('Partner 3'!$A$27:$A$32,$A28,'Partner 3'!E$27:E$32)+SUMIF('Partner 4'!$A$27:$A$32,$A28,'Partner 4'!E$27:E$32) -> 0 | F28: =SUMIF('Partner 1'!$A$27:$A$32,$A28,'Partner 1'!F$27:F$32)+SUMIF('Partner 2'!$A$27:$A$32,$A28,'Partner 2'!F$27:F$32)+SUMIF('Partner 3'!$A$27:$A$32,$A28,'Partner 3'!F$27:F$32)+SUMIF('Partner 4'!$A$27:$A$32,$A28,'Partner 4'!F$27:F$32) -> 0 | G28: =SUMIF('Partner 1'!$A$27:$A$32,$A28,'Partner 1'!G$27:G$32)+SUMIF('Partner 2'!$A$27:$A$32,$A28,'Partner 2'!G$27:G$32)+SUMIF('Partner 3'!$A$27:$A$32,$A28,'Partner 3'!G$27:G$32)+SUMIF('Partner 4'!$A$27:$A$32,$A28,'Partner 4'!G$27:G$32) -> 0 | H28: =SUM(C28:G28) -> 0
A29: Accomodation | C29: =SUMIF('Partner 1'!$A$27:$A$32,$A29,'Partner 1'!C$27:C$32)+SUMIF('Partner 2'!$A$27:$A$32,$A29,'Partner 2'!C$27:C$32)+SUMIF('Partner 3'!$A$27:$A$32,$A29,'Partner 3'!C$27:C$32)+SUMIF('Partner 4'!$A$27:$A$32,$A29,'Partner 4'!C$27:C$32) -> 0 | D29: =SUMIF('Partner 1'!$A$27:$A$32,$A29,'Partner 1'!D$27:D$32)+SUMIF('Partner 2'!$A$27:$A$32,$A29,'Partner 2'!D$27:D$32)+SUMIF('Partner 3'!$A$27:$A$32,$A29,'Partner 3'!D$27:D$32)+SUMIF('Partner 4'!$A$27:$A$32,$A29,'Partner 4'!D$27:D$32) -> 0 | E29: =SUMIF('Partner 1'!$A$27:$A$32,$A29,'Partner 1'!E$27:E$32)+SUMIF('Partner 2'!$A$27:$A$32,$A29,'Partner 2'!E$27:E$32)+SUMIF('Partner 3'!$A$27:$A$32,$A29,'Partner 3'!E$27:E$32)+SUMIF('Partner 4'!$A$27:$A$32,$A29,'Partner 4'!E$27:E$32) -> 0 | F29: =SUMIF('Partner 1'!$A$27:$A$32,$A29,'Partner 1'!F$27:F$32)+SUMIF('Partner 2'!$A$27:$A$32,$A29,'Partner 2'!F$27:F$32)+SUMIF('Partner 3'!$A$27:$A$32,$A29,'Partner 3'!F$27:F$32)+SUMIF('Partner 4'!$A$27:$A$32,$A29,'Partner 4'!F$27:F$32) -> 0 | G29: =SUMIF('Partner 1'!$A$27:$A$32,$A29,'Partner 1'!G$27:G$32)+SUMIF('Partner 2'!$A$27:$A$32,$A29,'Partner 2'!G$27:G$32)+SUMIF('Partner 3'!$A$27:$A$32,$A29,'Partner 3'!G$27:G$32)+SUMIF('Partner 4'!$A$27:$A$32,$A29,'Partner 4'!G$27:G$32) -> 0 | H29: =SUM(C29:G29) -> 0
A30: Equipment | C30: =SUMIF('Partner 1'!$A$27:$A$32,$A30,'Partner 1'!C$27:C$32)+SUMIF('Partner 2'!$A$27:$A$32,$A30,'Partner 2'!C$27:C$32)+SUMIF('Partner 3'!$A$27:$A$32,$A30,'Partner 3'!C$27:C$32)+SUMIF('Partner 4'!$A$27:$A$32,$A30,'Partner 4'!C$27:C$32) -> 0 | D30: =SUMIF('Partner 1'!$A$27:$A$32,$A30,'Partner 1'!D$27:D$32)+SUMIF('Partner 2'!$A$27:$A$32,$A30,'Partner 2'!D$27:D$32)+SUMIF('Partner 3'!$A$27:$A$32,$A30,'Partner 3'!D$27:D$32)+SUMIF('Partner 4'!$A$27:$A$32,$A30,'Partner 4'!D$27:D$32) -> 0 | E30: =SUMIF('Partner 1'!$A$27:$A$32,$A30,'Partner 1'!E$27:E$32)+SUMIF('Partner 2'!$A$27:$A$32,$A30,'Partner 2'!E$27:E$32)+SUMIF('Partner 3'!$A$27:$A$32,$A30,'Partner 3'!E$27:E$32)+SUMIF('Partner 4'!$A$27:$A$32,$A30,'Partner 4'!E$27:E$32) -> 0 | F30: =SUMIF('Partner 1'!$A$27:$A$32,$A30,'Partner 1'!F$27:F$32)+SUMIF('Partner 2'!$A$27:$A$32,$A30,'Partner 2'!F$27:F$32)+SUMIF('Partner 3'!$A$27:$A$32,$A30,'Partner 3'!F$27:F$32)+SUMIF('Partner 4'!$A$27:$A$32,$A30,'Partner 4'!F$27:F$32) -> 0 | G30: =SUMIF('Partner 1'!$A$27:$A$32,$A30,'Partner 1'!G$27:G$32)+SUMIF('Partner 2'!$A$27:$A$32,$A30,'Partner 2'!G$27:G$32)+SUMIF('Partner 3'!$A$27:$A$32,$A30,'Partner 3'!G$27:G$32)+SUMIF('Partner 4'!$A$27:$A$32,$A30,'Partner 4'!G$27:G$32) -> 0 | H30: =SUM(C30:G30) -> 0
A31: Other | C31: =SUMIF('Partner 1'!$A$27:$A$32,$A31,'Partner 1'!C$27:C$32)+SUMIF('Partner 2'!$A$27:$A$32,$A31,'Partner 2'!C$27:C$32)+SUMIF('Partner 3'!$A$27:$A$32,$A31,'Partner 3'!C$27:C$32)+SUMIF('Partner 4'!$A$27:$A$32,$A31,'Partner 4'!C$27:C$32) -> 0 | D31: =SUMIF('Partner 1'!$A$27:$A$32,$A31,'Partner 1'!D$27:D$32)+SUMIF('Partner 2'!$A$27:$A$32,$A31,'Partner 2'!D$27:D$32)+SUMIF('Partner 3'!$A$27:$A$32,$A31,'Partner 3'!D$27:D$32)+SUMIF('Partner 4'!$A$27:$A$32,$A31,'Partner 4'!D$27:D$32) -> 0 | E31: =SUMIF('Partner 1'!$A$27:$A$32,$A31,'Partner 1'!E$27:E$32)+SUMIF('Partner 2'!$A$27:$A$32,$A31,'Partner 2'!E$27:E$32)+SUMIF('Partner 3'!$A$27:$A$32,$A31,'Partner 3'!E$27:E$32)+SUMIF('Partner 4'!$A$27:$A$32,$A31,'Partner 4'!E$27:E$32) -> 0 | F31: =SUMIF('Partner 1'!$A$27:$A$32,$A31,'Partner 1'!F$27:F$32)+SUMIF('Partner 2'!$A$27:$A$32,$A31,'Partner 2'!F$27:F$32)+SUMIF('Partner 3'!$A$27:$A$32,$A31,'Partner 3'!F$27:F$32)+SUMIF('Partner 4'!$A$27:$A$32,$A31,'Partner 4'!F$27:F$32) -> 0 | G31: =SUMIF('Partner 1'!$A$27:$A$32,$A31,'Partner 1'!G$27:G$32)+SUMIF('Partner 2'!$A$27:$A$32,$A31,'Partner 2'!G$27:G$32)+SUMIF('Partner 3'!$A$27:$A$32,$A31,'Partner 3'!G$27:G$32)+SUMIF('Partner 4'!$A$27:$A$32,$A31,'Partner 4'!G$27:G$32) -> 0 | H31: =SUM(C31:G31) -> 0
A32: Operations Total | C32: =SUM(C27:C31)-C31 -> 0 | D32: =SUM(D27:D31)-D31 -> 0 | E32: =SUM(E27:E31)-E31 -> 0 | F32: =SUM(F27:F31)-F31 -> 0 | G32: =SUM(G27:G31)-G31 -> 0 | H32: =SUM(H27:H31) -> 0
B35: DKK | C35: =+C12 -> 2023 | D35: 2024 | E35: 2025 | F35: 2026 | G35: 2027 | H35: Total
A36: Salary | C36: =+'Partner 1'!C36+'Partner 2'!C36+'Partner 3'!C36+'Partner 4'!C36 -> 0 | D36: =+'Partner 1'!D36+'Partner 2'!D36+'Partner 3'!D36+'Partner 4'!D36 -> 0 | E36: =+'Partner 1'!E36+'Partner 2'!E36+'Partner 3'!E36+'Partner 4'!E36 -> 0 | F36: =+'Partner 1'!F36+'Partner 2'!F36+'Partner 3'!F36+'Partner 4'!F36 -> 0 | G36: =+'Partner 1'!G36+'Partner 2'!G36+'Partner 3'!G36+'Partner 4'!G36 -> 0 | H36: =SUM(C36:G36) -> 0
A37: Running costs (consumables etc.) | C37: =+'Partner 1'!C37+'Partner 2'!C37+'Partner 3'!C37+'Partner 4'!C37 -> 0 | D37: =+'Partner 1'!D37+'Partner 2'!D37+'Partner 3'!D37+'Partner 4'!D37 -> 0 | E37: =+'Partner 1'!E37+'Partner 2'!E37+'Partner 3'!E37+'Partner 4'!E37 -> 0 | F37: =+'Partner 1'!F37+'Partner 2'!F37+'Partner 3'!F37+'Partner 4'!F37 -> 0 | G37: =+'Partner 1'!G37+'Partner 2'!G37+'Partner 3'!G37+'Partner 4'!G37 -> 0 | H37: =SUM(C37:G37) -> 0
A38: Mobility/travel | C38: =+'Partner 1'!C38+'Partner 2'!C38+'Partner 3'!C38+'Partner 4'!C38 -> 0 | D38: =+'Partner 1'!D38+'Partner 2'!D38+'Partner 3'!D38+'Partner 4'!D38 -> 0 | E38: =+'Partner 1'!E38+'Partner 2'!E38+'Partner 3'!E38+'Partner 4'!E38 -> 0 | F38: =+'Partner 1'!F38+'Partner 2'!F38+'Partner 3'!F38+'Partner 4'!F38 -> 0 | G38: =+'Partner 1'!G38+'Partner 2'!G38+'Partner 3'!G38+'Partner 4'!G38 -> 0 | H38: =SUM(C38:G38) -> 0
A39: Equipment | C39: =+'Partner 1'!C39+'Partner 2'!C39+'Partner 3'!C39+'Partner 4'!C39 -> 0 | D39: =+'Partner 1'!D39+'Partner 2'!D39+'Partner 3'!D39+'Partner 4'!D39 -> 0 | E39: =+'Partner 1'!E39+'Partner 2'!E39+'Partner 3'!E39+'Partner 4'!E39 -> 0 | F39: =+'Partner 1'!F39+'Partner 2'!F39+'Partner 3'!F39+'Partner 4'!F39 -> 0 | G39: =+'Partner 1'!G39+'Partner 2'!G39+'Partner 3'!G39+'Partner 4'!G39 -> 0 | H39: =SUM(C39:G39) -> 0
A40: Other | C40: =+'Partner 1'!C40+'Partner 2'!C40+'Partner 3'!C40+'Partner 4'!C40 -> 0 | D40: =+'Partner 1'!D40+'Partner 2'!D40+'Partner 3'!D40+'Partner 4'!D40 -> 0 | E40: =+'Partner 1'!E40+'Partner 2'!E40+'Partner 3'!E40+'Partner 4'!E40 -> 0 | F40: =+'Partner 1'!F40+'Partner 2'!F40+'Partner 3'!F40+'Partner 4'!F40 -> 0 | G40: =+'Partner 1'!G40+'Partner 2'!G40+'Partner 3'!G40+'Partner 4'!G40 -> 0 | H40: =SUM(C40:G40) -> 0
A41: Total | C41: =SUM(C36:C40) -> 0 | D41: =SUM(D36:D40) -> 0 | E41: 0 | F41: 0 | G41: 0 | H41: 0
